Workbook

Sheet Summary
C1: =SUM(C2-C3)+1 -> 267 | D1: =MAX(AS7:AS282) -> 84 | N1: Northampton | T1: Date | Y1: Games | AB1: Games | AI1: Day | AR1: =MAX(AS:AS) -> 84 | AT1: =MATCH(T67,T10:T33,0) -> 5 | AV1: Date | AY1: =BQ1 -> <=05/05/09 | BQ1: =T2 -> <=05/05/09
C2: =MAX(D6:D558) -> 2009-05-02 | T2: =LOOKUP($T$5,AS7:AS287,AT7:AT205) -> <=05/05/09 | Y2: =U67 -> 46 | Z2: 46 | AB2: =U81 -> 1104 | AD2: 1104 | AI2: =IF($AO$5=7,"Sunday",IF($AO$5=6,"Saturday",IF($AO$5=5,"Friday",IF($AO$5=4,"Thursday",IF($AO$5=3,"Wednesday",IF($AO$5=2,"Tuesday","Monday")))))) -> Saturday | AJ2: =IF($P$16=7,"Sunday",IF($P$16=6,"Saturday",IF($P$16=5,"Friday",IF($P$16=4,"Thursday",IF($P$16=3,"Wednesday",IF($P$16=2,"Tuesday","Monday")))))) -> Monday | AK2: Monday | AO2: =LOOKUP($T$5,$AS$7:$AS$282,$AU$7:$AU$76) -> 2009-05-02 | AT2: Millwall Highlight
C3: =MIN(D6:D558) -> 2008-08-09 | AI3: =IF($P$16=7,"Sunday",IF($P$16=6,"Saturday",IF($P$16=5,"Friday",IF($P$16=4,"Thursday",IF($P$16=3,"Wednesday",IF($P$16=2,"Tuesday","Monday")))))) -> Monday | AJ3: Monday | AK3: Monday | CK3: Home | CL3: f | CM3: a | CN3: Away
AI4: =IF($P$16=7,"Sunday",IF($P$16=6,"Saturday",IF($P$16=5,"Friday",IF($P$16=4,"Thursday",IF($P$16=3,"Wednesday",IF($P$16=2,"Tuesday","Monday")))))) -> Monday | AJ4: Monday | AK4: Monday
A5: Evens | B5: trans | C5: Comp | D5: Date | E5: Home (team) | F5: F | G5: A | H5: Away (team) | I5: x | J5: Pts1 | K5: Pts2 | L5: Trans2 | M5: Att | N5: Team | T5: 84 | AI5: 25 | AJ5: 25 | AK5: 25 | AO5: =WEEKDAY(AO2,2) -> 6 | AX5: Pld | AY5: Won | AZ5: Drawn | BA5: Lost | BB5: F | BC5: A | BD5: +/- | BE5: Pts | BF5: Pld | BG5: Won | BH5: Drawn | BI5: Lost | BJ5: F | BK5: A | BL5: +/- | BM5: Pts | BQ5: Home (team) | BR5: Date | BS5: Pts1 | BT5: Home (team) | BU5: Date | BV5: Pts1 | BX5: Away (team) | BY5: Date | BZ5: Pts2 | CA5: Away (team) | CB5: Date | CC5: Pts2 | CG5: Brighton | CI5: 1 | CJ5: 2009-05-02 | CK5: Brighton | CN5: Stockport
A6: 1 | B6: =IF(A6=1,D6+0.01,IF(A6=2,D6+0.02,IF(A6=3,D6+0.03,IF(A6=4,D6+0.04,IF(A6=5,D6+0.05,IF(A6=6,D6+0.06,IF(A6=7,D6+0.07,IF(A6=8,D6+0.08,0)))))))) -> 2008-08-09T00:14:24 | C6: =IF(A6=9,D6+0.09,IF(A6=10,D6+0.1,IF(A6=11,D6+0.11,IF(A6=12,D6+0.12,0)))) -> 00:00:00 | D6: 2008-08-09 | E6: Bristol Rovers | F6: 2 | G6: 3 | H6: Carlisle | I6: 1 | J6: =IF(F6>G6,3,IF(F6=G6,1,0)) -> 0 | K6: =IF(G6>F6,3,IF(G6=F6,1,0)) -> 3 | L6: =B6+C6 -> 2008-08-09T00:14:24 | M6: 8285 | N6: =IF(E6=$N$1,$N$1,IF(H6=$N$1,$N$1,"Other")) -> Other | O6: =IF(N6=$N$1,IF(E6=$N$1,H6,E6),"") ->  | T6: Date | AN6: Cycle Speed | AQ6: 1 | AW6: Brighton | AX6: =DSUM(Data,$I$5,$BQ$5:$BR$6) -> 23 | AY6: =DCOUNT(Data,$J$5,$BQ$5:$BS$6) -> 6 | AZ6: =DCOUNT(Data,$J$5,$BT$5:$BV$6) -> 6 | BA6: =SUM(AX6-AY6-AZ6) -> 11 | BB6: =DSUM(Data,$F$5,$BQ$5:$BR$6) -> 32 | BC6: =DSUM(Data,$G$5,$BQ$5:$BR$6) -> 40 | BD6: =SUM(BB6-BC6) -> -8 | BE6: =DSUM(Data,$J$5,$BQ$5:$BR$6) -> 24 | BF6: =DSUM(Data,$I$5,$BX$5:$BY$6) -> 23 | BG6: =DCOUNT(Data,$K$5,$BX$5:$BZ$6) -> 7 | BH6: =DCOUNT(Data,$J$5,$CA$5:$CC$6) -> 7 | BI6: =SUM(BF6-BG6-BH6) -> 9 | BJ6: =DSUM(Data,$G$5,$BX$5:$BY$6) -> 23 | BK6: =DSUM(Data,$F$5,$BX$5:$BY$6) -> 30 | BL6: =SUM(BJ6-BK6) -> -7 | BM6: =DSUM(Data,$K$5,$BX$5:$BY$6) -> 28 | BQ6: =BA34 -> Brighton | BR6: =$BQ$1 -> <=05/05/09 | BS6: 3 | BT6: =BQ6 -> Brighton | BU6: =$BQ$1 -> <=05/05/09 | BV6: 1 | BX6: =$BQ6 -> Brighton | BY6: =$BQ$1 -> <=05/05/09 | BZ6: 3 | CA6: =$BQ6 -> Brighton | CB6: =$BQ$1 -> <=05/05/09 | CC6: 1 | CE6: =IF(CD6=BM6,"","Err") -> Err | CG6: Bristol Rovers | CI6: 2 | CK6: Bristol Rovers | CN6: Hartlepool
A7: =IF(D7=D6,A6+1,1) -> 2 | B7: =IF(A7=1,D7+0.01,IF(A7=2,D7+0.02,IF(A7=3,D7+0.03,IF(A7=4,D7+0.04,IF(A7=5,D7+0.05,IF(A7=6,D7+0.06,IF(A7=7,D7+0.07,IF(A7=8,D7+0.08,0)))))))) -> 2008-08-09T00:28:48 | C7: =IF(A7=9,D7+0.09,IF(A7=10,D7+0.1,IF(A7=11,D7+0.11,IF(A7=12,D7+0.12,0)))) -> 00:00:00 | D7: 2008-08-09 | E7: Crewe | F7: 1 | G7: 2 | H7: Brighton | I7: 1 | J7: 0 | K7: 3 | L7: =B7+C7 -> 2008-08-09T00:28:48 | M7: 4557 | N7: =IF(E7=$N$1,$N$1,IF(H7=$N$1,$N$1,"Other")) -> Other | O7: =IF(N7=$N$1,IF(E7=$N$1,H7,E7),"") ->  | S7: Last Fixture: | U7: =LOOKUP($Y$2,$BC$35:$BC$80,$BD$35:$BD$80) -> Carlisle (A) L 0-2 | AC7: =LOOKUP($Y$2,$BC$35:$BC$80,$BE$35:$BE$80) -> 82 Pts | AF7: Next Fixture: | AJ7: =LOOKUP($Y$2,$BC$35:$BC$80,$BK$35:$BK$81) -> End of Season | AS7: 1 | AT7: <=09/08/08 | AU7: 2008-08-09 | AW7: Bristol Rovers | AX7: =DSUM(Data,$I$5,$BQ$7:$BR$8) -> 23 | AY7: =DCOUNT(Data,$J$5,$BQ$7:$BS$8) -> 11 | AZ7: =DCOUNT(Data,$J$5,$BT$7:$BV$8) -> 4 | BA7: 8 | BB7: =DSUM(Data,$F$5,$BQ$7:$BR$8) -> 44 | BC7: =DSUM(Data,$G$5,$BQ$7:$BR$8) -> 29 | BD7: 15 | BE7: =DSUM(Data,$J$5,$BQ$7:$BR$8) -> 37 | BF7: =DSUM(Data,$I$5,$BX$7:$BY$8) -> 23 | BG7: =DCOUNT(Data,$K$5,$BX$7:$BZ$8) -> 6 | BH7: =DCOUNT(Data,$J$5,$CA$7:$CC$8) -> 8 | BI7: 9 | BJ7: =DSUM(Data,$G$5,$BX$7:$BY$8) -> 35 | BK7: =DSUM(Data,$F$5,$BX$7:$BY$8) -> 32 | BL7: 3 | BM7: =DSUM(Data,$K$5,$BX$7:$BY$8) -> 26 | BQ7: Home (team) | BR7: Date | BS7: Pts1 | BT7: Home (team) | BU7: Date | BV7: Pts1 | BX7: Away (team) | BY7: Date | BZ7: Pts2 | CA7: Away (team) | CB7: Date | CC7: Pts2 | CG7: Carlisle | CI7: 3 | CK7: Carlisle | CN7: Millwall
A8: 3 | B8: 2008-08-09T00:43:12 | C8: 00:00:00 | D8: 2008-08-09 | E8: Hartlepool | F8: 4 | G8: 2 | H8: Colchester | I8: 1 | J8: 3 | K8: 0 | L8: 2008-08-09T00:43:12 | M8: 3831 | N8: Other | V8: Home | AC8: Away | AJ8: Overall | AS8: 2 | AT8: <=16/08/08 | AU8: 2008-08-16 | AW8: Carlisle | AX8: =DSUM(Data,$I$5,$BQ$9:$BR$10) -> 23 | AY8: =DCOUNT(Data,$J$5,$BQ$9:$BS$10) -> 8 | AZ8: =DCOUNT(Data,$J$5,$BT$9:$BV$10) -> 7 | BA8: 8 | BB8: =DSUM(Data,$F$5,$BQ$9:$BR$10) -> 36 | BC8: =DSUM(Data,$G$5,$BQ$9:$BR$10) -> 32 | BD8: 4 | BE8: =DSUM(Data,$J$5,$BQ$9:$BR$10) -> 31 | BF8: =DSUM(Data,$I$5,$BX$9:$BY$10) -> 23 | BG8: =DCOUNT(Data,$K$5,$BX$9:$BZ$10) -> 4 | BH8: =DCOUNT(Data,$J$5,$CA$9:$CC$10) -> 7 | BI8: 12 | BJ8: =DSUM(Data,$G$5,$BX$9:$BY$10) -> 20 | BK8: =DSUM(Data,$F$5,$BX$9:$BY$10) -> 37 | BL8: -17 | BM8: =DSUM(Data,$K$5,$BX$9:$BY$10) -> 19 | BQ8: =BA36 -> Bristol Rovers | BR8: =$BQ$1 -> <=05/05/09 | BS8: 3 | BT8: =BQ8 -> Bristol Rovers | BU8: =$BQ$1 -> <=05/05/09 | BV8: 1 | BX8: =$BQ8 -> Bristol Rovers | BY8: =$BQ$1 -> <=05/05/09 | BZ8: 3 | CA8: =$BQ8 -> Bristol Rovers | CB8: =$BQ$1 -> <=05/05/09 | CC8: 1 | CG8: Cheltenham | CI8: 4 | CK8: Crewe | CN8: Leicester
A9: 4 | B9: 2008-08-09T00:57:36 | C9: 00:00:00 | D9: 2008-08-09 | E9: Huddersfield | F9: 1 | G9: 1 | H9: Stockport | I9: 1 | J9: 1 | K9: 1 | L9: 2008-08-09T00:57:36 | M9: 15578 | N9: Other | Q9: Games | S9: Pos | T9: Team | U9: Pld | V9: W | W9: D | X9: L | Y9: F | Z9: A | AA9: +/- | AB9: Pts | AC9: W | AD9: D | AE9: L | AF9: F | AG9: A | AH9: +/- | AI9: Pts | AJ9: W | AK9: D | AL9: L | AM9: F | AN9: A | AO9: +/- | AP9: Pts | AS9: 3 | AT9: <=22/08/08 | AU9: 2008-08-22 | AW9: Cheltenham | AX9: =DSUM(Data,$I$5,$BQ$11:$BR$12) -> 23 | AY9: =DCOUNT(Data,$J$5,$BQ$11:$BS$12) -> 7 | AZ9: =DCOUNT(Data,$J$5,$BT$11:$BV$12) -> 6 | BA9: 10 | BB9: =DSUM(Data,$F$5,$BQ$11:$BR$12) -> 30 | BC9: =DSUM(Data,$G$5,$BQ$11:$BR$12) -> 38 | BD9: -8 | BE9: =DSUM(Data,$J$5,$BQ$11:$BR$12) -> 27 | BF9: =DSUM(Data,$I$5,$BX$11:$BY$12) -> 23 | BG9: =DCOUNT(Data,$K$5,$BX$11:$BZ$12) -> 2 | BH9: =DCOUNT(Data,$J$5,$CA$11:$CC$12) -> 6 | BI9: 15 | BJ9: =DSUM(Data,$G$5,$BX$11:$BY$12) -> 21 | BK9: =DSUM(Data,$F$5,$BX$11:$BY$12) -> 53 | BL9: -32 | BM9: =DSUM(Data,$K$5,$BX$11:$BY$12) -> 12 | BQ9: Home (team) | BR9: Date | BS9: Pts1 | BT9: Home (team) | BU9: Date | BV9: Pts1 | BX9: Away (team) | BY9: Date | BZ9: Pts2 | CA9: Away (team) | CB9: Date | CC9: Pts2 | CG9: Colchester | CI9: 5 | CK9: Hereford | CN9: MK Dons
A10: 5 | B10: 2008-08-09T01:12:00 | C10: 00:00:00 | D10: 2008-08-09 | E10: Leicester | F10: 2 | G10: 0 | H10: MK Dons | I10: 1 | J10: 3 | K10: 0 | L10: 2008-08-09T01:12:00 | M10: 23351 | N10: Other | Q10: =Y2 -> 46 | R10: =IF(S10=AT$1,1,0) -> 0 | S10: 1 | T10: Leicester | U10: 46 | V10: 13 | W10: 9 | X10: 1 | Y10: 41 | Z10: 16 | AA10: 25 | AB10: 48 | AC10: 14 | AD10: 6 | AE10: 3 | AF10: 43 | AG10: 23 | AH10: 20 | AI10: 48 | AJ10: 27 | AK10: 15 | AL10: 4 | AM10: 84 | AN10: 39 | AO10: 45 | AP10: 96 | AS10: 4 | AT10: <=23/08/08 | AU10: 2008-08-23 | AW10: Colchester | AX10: =DSUM(Data,$I$5,$BQ$13:$BR$14) -> 23 | AY10: =DCOUNT(Data,$J$5,$BQ$13:$BS$14) -> 7 | AZ10: =DCOUNT(Data,$J$5,$BT$13:$BV$14) -> 4 | BA10: 12 | BB10: =DSUM(Data,$F$5,$BQ$13:$BR$14) -> 21 | BC10: =DSUM(Data,$G$5,$BQ$13:$BR$14) -> 24 | BD10: -3 | BE10: =DSUM(Data,$J$5,$BQ$13:$BR$14) -> 25 | BF10: =DSUM(Data,$I$5,$BX$13:$BY$14) -> 23 | BG10: =DCOUNT(Data,$K$5,$BX$13:$BZ$14) -> 11 | BH10: =DCOUNT(Data,$J$5,$CA$13:$CC$14) -> 5 | BI10: 7 | BJ10: =DSUM(Data,$G$5,$BX$13:$BY$14) -> 37 | BK10: =DSUM(Data,$F$5,$BX$13:$BY$14) -> 34 | BL10: 3 | BM10: =DSUM(Data,$K$5,$BX$13:$BY$14) -> 38 | BQ10: =BA38 -> Carlisle | BR10: =$BQ$1 -> <=05/05/09 | BS10: 3 | BT10: =BQ10 -> Carlisle | BU10: =$BQ$1 -> <=05/05/09 | BV10: 1 | BX10: =$BQ10 -> Carlisle | BY10: =$BQ$1 -> <=05/05/09 | BZ10: 3 | CA10: =$BQ10 -> Carlisle | CB10: =$BQ$1 -> <=05/05/09 | CC10: 1 | CG10: Crewe | CI10: 6 | CK10: Leeds United | CN10: MK Dons
A11: 6 | B11: 2008-08-09T01:26:24 | C11: 00:00:00 | D11: 2008-08-09 | E11: Leyton Orient | F11: 2 | G11: 1 | H11: Hereford | I11: 1 | J11: 3 | K11: 0 | L11: 2008-08-09T01:26:24 | M11: 4727 | N11: Other | R11: =IF(S11=AT$1,1,0) -> 0 | S11: 2 | T11: Peterborough | U11: 46 | V11: 14 | W11: 6 | X11: 3 | Y11: 41 | Z11: 22 | AA11: 19 | AB11: 48 | AC11: 12 | AD11: 5 | AE11: 6 | AF11: 37 | AG11: 32 | AH11: 5 | AI11: 41 | AJ11: 26 | AK11: 11 | AL11: 9 | AM11: 78 | AN11: 54 | AO11: 24 | AP11: 89 | AS11: 5 | AT11: <=30/08/08 | AU11: 2008-08-30 | AW11: Crewe | AX11: =DSUM(Data,$I$5,$BQ$15:$BR$16) -> 23 | AY11: =DCOUNT(Data,$J$5,$BQ$15:$BS$16) -> 8 | AZ11: =DCOUNT(Data,$J$5,$BT$15:$BV$16) -> 4 | BA11: 11 | BB11: =DSUM(Data,$F$5,$BQ$15:$BR$16) -> 30 | BC11: =DSUM(Data,$G$5,$BQ$15:$BR$16) -> 38 | BD11: -8 | BE11: =DSUM(Data,$J$5,$BQ$15:$BR$16) -> 28 | BF11: =DSUM(Data,$I$5,$BX$15:$BY$16) -> 23 | BG11: =DCOUNT(Data,$K$5,$BX$15:$BZ$16) -> 4 | BH11: =DCOUNT(Data,$J$5,$CA$15:$CC$16) -> 6 | BI11: 13 | BJ11: =DSUM(Data,$G$5,$BX$15:$BY$16) -> 29 | BK11: =DSUM(Data,$F$5,$BX$15:$BY$16) -> 44 | BL11: -15 | BM11: =DSUM(Data,$K$5,$BX$15:$BY$16) -> 18 | BQ11: Home (team) | BR11: Date | BS11: Pts1 | BT11: Home (team) | BU11: Date | BV11: Pts1 | BX11: Away (team) | BY11: Date | BZ11: Pts2 | CA11: Away (team) | CB11: Date | CC11: Pts2 | CG11: Hartlepool | CI11: 7 | CK11: Leyton Orient | CN11: Huddersfield
A12: 7 | B12: 2008-08-09T01:40:48 | C12: 00:00:00 | D12: 2008-08-09 | E12: Northampton | F12: 4 | G12: 2 | H12: Cheltenham | I12: 1 | J12: =IF(F12>G12,3,IF(F12=G12,1,0)) -> 3 | K12: =IF(G12>F12,3,IF(G12=F12,1,0)) -> 0 | L12: 2008-08-09T01:40:48 | M12: 4716 | N12: Northampton | O12: Cheltenham | R12: 0 | S12: 3 | T12: MK Dons | U12: 46 | V12: 12 | W12: 4 | X12: 7 | Y12: 42 | Z12: 25 | AA12: 17 | AB12: 40 | AC12: 14 | AD12: 5 | AE12: 4 | AF12: 41 | AG12: 22 | AH12: 19 | AI12: 47 | AJ12: 26 | AK12: 9 | AL12: 11 | AM12: 83 | AN12: 47 | AO12: 36 | AP12: 87 | AS12: 6 | AT12: <=05/09/08 | AU12: 2008-09-05 | AW12: Hartlepool | AX12: =DSUM(Data,$I$5,$BQ$17:$BR$18) -> 23 | AY12: =DCOUNT(Data,$J$5,$BQ$17:$BS$18) -> 8 | AZ12: =DCOUNT(Data,$J$5,$BT$17:$BV$18) -> 7 | BA12: 8 | BB12: =DSUM(Data,$F$5,$BQ$17:$BR$18) -> 45 | BC12: =DSUM(Data,$G$5,$BQ$17:$BR$18) -> 40 | BD12: 5 | BE12: =DSUM(Data,$J$5,$BQ$17:$BR$18) -> 31 | BF12: =DSUM(Data,$I$5,$BX$17:$BY$18) -> 23 | BG12: =DCOUNT(Data,$K$5,$BX$17:$BZ$18) -> 5 | BH12: =DCOUNT(Data,$J$5,$CA$17:$CC$18) -> 4 | BI12: 14 | BJ12: =DSUM(Data,$G$5,$BX$17:$BY$18) -> 21 | BK12: =DSUM(Data,$F$5,$BX$17:$BY$18) -> 39 | BL12: -18 | BM12: =DSUM(Data,$K$5,$BX$17:$BY$18) -> 19 | BQ12: =BA40 -> Cheltenham | BR12: =$BQ$1 -> <=05/05/09 | BS12: 3 | BT12: =BQ12 -> Cheltenham | BU12: =$BQ$1 -> <=05/05/09 | BV12: 1 | BX12: =$BQ12 -> Cheltenham | BY12: =$BQ$1 -> <=05/05/09 | BZ12: 3 | CA12: =$BQ12 -> Cheltenham | CB12: =$BQ$1 -> <=05/05/09 | CC12: 1 | CG12: Hereford | CI12: 8 | CK12: Peterborough | CN12: Swindon
A13: 8 | B13: 2008-08-09T01:55:12 | C13: 00:00:00 | D13: 2008-08-09 | E13: Oldham | F13: 4 | G13: 3 | H13: Millwall | I13: 1 | J13: 3 | K13: 0 | L13: 2008-08-09T01:55:12 | M13: 5367 | N13: Other | R13: 0 | S13: 4 | T13: Leeds United | U13: 46 | V13: 17 | W13: 2 | X13: 4 | Y13: 49 | Z13: 20 | AA13: 29 | AB13: 53 | AC13: 9 | AD13: 4 | AE13: 10 | AF13: 28 | AG13: 29 | AH13: -1 | AI13: 31 | AJ13: 26 | AK13: 6 | AL13: 14 | AM13: 77 | AN13: 49 | AO13: 28 | AP13: 84 | AS13: 7 | AT13: <=06/09/08 | AU13: 2008-09-06 | AW13: Hereford | AX13: =DSUM(Data,$I$5,$BQ$19:$BR$20) -> 23 | AY13: =DCOUNT(Data,$J$5,$BQ$19:$BS$20) -> 6 | AZ13: =DCOUNT(Data,$J$5,$BT$19:$BV$20) -> 4 | BA13: 13 | BB13: =DSUM(Data,$F$5,$BQ$19:$BR$20) -> 23 | BC13: =DSUM(Data,$G$5,$BQ$19:$BR$20) -> 28 | BD13: -5 | BE13: =DSUM(Data,$J$5,$BQ$19:$BR$20) -> 22 | BF13: =DSUM(Data,$I$5,$BX$19:$BY$20) -> 23 | BG13: =DCOUNT(Data,$K$5,$BX$19:$BZ$20) -> 3 | BH13: =DCOUNT(Data,$J$5,$CA$19:$CC$20) -> 3 | BI13: 17 | BJ13: =DSUM(Data,$G$5,$BX$19:$BY$20) -> 19 | BK13: =DSUM(Data,$F$5,$BX$19:$BY$20) -> 51 | BL13: -32 | BM13: =DSUM(Data,$K$5,$BX$19:$BY$20) -> 12 | BQ13: Home (team) | BR13: Date | BS13: Pts1 | BT13: Home (team) | BU13: Date | BV13: Pts1 | BX13: Away (team) | BY13: Date | BZ13: Pts2 | CA13: Away (team) | CB13: Date | CC13: Pts2 | CG13: Huddersfield | CI13: 9 | CK13: Scunthorpe | CN13: Tranmere
A14: 9 | B14: 00:00:00 | C14: 2008-08-09T02:09:36 | D14: 2008-08-09 | E14: Scunthorpe | F14: 1 | G14: 2 | H14: Leeds United | I14: 1 | J14: 0 | K14: 3 | L14: 2008-08-09T02:09:36 | M14: 8315 | N14: Other | R14: 1 | S14: 5 | T14: Millwall | U14: 46 | V14: 13 | W14: 4 | X14: 6 | Y14: 30 | Z14: 21 | AA14: 9 | AB14: 43 | AC14: 12 | AD14: 3 | AE14: 8 | AF14: 33 | AG14: 32 | AH14: 1 | AI14: 39 | AJ14: 25 | AK14: 7 | AL14: 14 | AM14: 63 | AN14: 53 | AO14: 10 | AP14: 82 | AS14: 8 | AT14: <=12/09/08 | AU14: 2008-09-12 | AW14: Huddersfield | AX14: =DSUM(Data,$I$5,$BQ$21:$BR$22) -> 23 | AY14: =DCOUNT(Data,$J$5,$BQ$21:$BS$22) -> 9 | AZ14: =DCOUNT(Data,$J$5,$BT$21:$BV$22) -> 8 | BA14: 6 | BB14: =DSUM(Data,$F$5,$BQ$21:$BR$22) -> 32 | BC14: =DSUM(Data,$G$5,$BQ$21:$BR$22) -> 28 | BD14: 4 | BE14: =DSUM(Data,$J$5,$BQ$21:$BR$22) -> 35 | BF14: =DSUM(Data,$I$5,$BX$21:$BY$22) -> 23 | BG14: =DCOUNT(Data,$K$5,$BX$21:$BZ$22) -> 9 | BH14: =DCOUNT(Data,$J$5,$CA$21:$CC$22) -> 6 | BI14: 8 | BJ14: =DSUM(Data,$G$5,$BX$21:$BY$22) -> 30 | BK14: =DSUM(Data,$F$5,$BX$21:$BY$22) -> 37 | BL14: -7 | BM14: =DSUM(Data,$K$5,$BX$21:$BY$22) -> 33 | BQ14: =BA42 -> Colchester | BR14: =$BQ$1 -> <=05/05/09 | BS14: 3 | BT14: =BQ14 -> Colchester | BU14: =$BQ$1 -> <=05/05/09 | BV14: 1 | BX14: =$BQ14 -> Colchester | BY14: =$BQ$1 -> <=05/05/09 | BZ14: 3 | CA14: =$BQ14 -> Colchester | CB14: =$BQ$1 -> <=05/05/09 | CC14: 1 | CG14: Leeds United | CI14: 10 | CK14: Southend | CN14: Cheltenham
A15: 10 | B15: 00:00:00 | C15: 2008-08-09T02:24:00 | D15: 2008-08-09 | E15: Southend | F15: 1 | G15: 0 | H15: Peterborough | I15: 1 | J15: 3 | K15: 0 | L15: 2008-08-09T02:24:00 | M15: 8665 | N15: Other | R15: 0 | S15: 6 | T15: Scunthorpe | U15: 46 | V15: 13 | W15: 5 | X15: 5 | Y15: 44 | Z15: 24 | AA15: 20 | AB15: 44 | AC15: 9 | AD15: 5 | AE15: 9 | AF15: 38 | AG15: 39 | AH15: -1 | AI15: 32 | AJ15: 22 | AK15: 10 | AL15: 14 | AM15: 82 | AN15: 63 | AO15: 19 | AP15: 76 | AS15: 9 | AT15: <=13/09/08 | AU15: 2008-09-13 | AW15: Leeds United | AX15: =DSUM(Data,$I$5,$BQ$23:$BR$24) -> 23 | AY15: =DCOUNT(Data,$J$5,$BQ$23:$BS$24) -> 17 | AZ15: =DCOUNT(Data,$J$5,$BT$23:$BV$24) -> 2 | BA15: 4 | BB15: =DSUM(Data,$F$5,$BQ$23:$BR$24) -> 49 | BC15: =DSUM(Data,$G$5,$BQ$23:$BR$24) -> 20 | BD15: 29 | BE15: =DSUM(Data,$J$5,$BQ$23:$BR$24) -> 53 | BF15: =DSUM(Data,$I$5,$BX$23:$BY$24) -> 23 | BG15: =DCOUNT(Data,$K$5,$BX$23:$BZ$24) -> 9 | BH15: =DCOUNT(Data,$J$5,$CA$23:$CC$24) -> 4 | BI15: 10 | BJ15: =DSUM(Data,$G$5,$BX$23:$BY$24) -> 28 | BK15: =DSUM(Data,$F$5,$BX$23:$BY$24) -> 29 | BL15: -1 | BM15: =DSUM(Data,$K$5,$BX$23:$BY$24) -> 31 | BQ15: Home (team) | BR15: Date | BS15: Pts1 | BT15: Home (team) | BU15: Date | BV15: Pts1 | BX15: Away (team) | BY15: Date | BZ15: Pts2 | CA15: Away (team) | CB15: Date | CC15: Pts2 | CG15: Leicester | CI15: 11 | CK15: Walsall | CN15: Oldham
A16: 11 | B16: 00:00:00 | C16: 2008-08-09T02:38:24 | D16: 2008-08-09 | E16: Swindon | F16: 3 | G16: 1 | H16: Tranmere | I16: 1 | J16: 3 | K16: 0 | L16: 2008-08-09T02:38:24 | M16: 7975 | N16: Other | R16: 0 | S16: 7 | T16: Tranmere | U16: 46 | V16: 15 | W16: 5 | X16: 3 | Y16: 41 | Z16: 20 | AA16: 21 | AB16: 50 | AC16: 6 | AD16: 6 | AE16: 11 | AF16: 21 | AG16: 29 | AH16: -8 | AI16: 24 | AJ16: 21 | AK16: 11 | AL16: 14 | AM16: 62 | AN16: 49 | AO16: 13 | AP16: 74 | AS16: 10 | AT16: <=16/09/08 | AU16: 2008-09-16 | AW16: Leicester | AX16: =DSUM(Data,$I$5,$BQ$25:$BR$26) -> 23 | AY16: =DCOUNT(Data,$J$5,$BQ$25:$BS$26) -> 13 | AZ16: =DCOUNT(Data,$J$5,$BT$25:$BV$26) -> 9 | BA16: 1 | BB16: =DSUM(Data,$F$5,$BQ$25:$BR$26) -> 41 | BC16: =DSUM(Data,$G$5,$BQ$25:$BR$26) -> 16 | BD16: 25 | BE16: =DSUM(Data,$J$5,$BQ$25:$BR$26) -> 48 | BF16: =DSUM(Data,$I$5,$BX$25:$BY$26) -> 23 | BG16: =DCOUNT(Data,$K$5,$BX$25:$BZ$26) -> 14 | BH16: =DCOUNT(Data,$J$5,$CA$25:$CC$26) -> 6 | BI16: 3 | BJ16: =DSUM(Data,$G$5,$BX$25:$BY$26) -> 43 | BK16: =DSUM(Data,$F$5,$BX$25:$BY$26) -> 23 | BL16: 20 | BM16: =DSUM(Data,$K$5,$BX$25:$BY$26) -> 48 | BQ16: =BA44 -> Crewe | BR16: =$BQ$1 -> <=05/05/09 | BS16: 3 | BT16: =BQ16 -> Crewe | BU16: =$BQ$1 -> <=05/05/09 | BV16: 1 | BX16: =$BQ16 -> Crewe | BY16: =$BQ$1 -> <=05/05/09 | BZ16: 3 | CA16: =$BQ16 -> Crewe | CB16: =$BQ$1 -> <=05/05/09 | CC16: 1 | CG16: Leyton Orient | CI16: 12 | CK16: Yeovil | CN16: Colchester
A17: 12 | B17: 00:00:00 | C17: 2008-08-09T02:52:48 | D17: 2008-08-09 | E17: Yeovil | F17: 1 | G17: 1 | H17: Walsall | I17: 1 | J17: 1 | K17: 1 | L17: 2008-08-09T02:52:48 | M17: 4518 | N17: Other | R17: 0 | S17: 8 | T17: Southend | U17: 46 | V17: 13 | W17: 2 | X17: 8 | Y17: 29 | Z17: 20 | AA17: 9 | AB17: 41 | AC17: 8 | AD17: 6 | AE17: 9 | AF17: 29 | AG17: 41 | AH17: -12 | AI17: 30 | AJ17: 21 | AK17: 8 | AL17: 17 | AM17: 58 | AN17: 61 | AO17: -3 | AP17: 71 | AS17: 11 | AT17: <=20/09/08 | AU17: 2008-09-20 | AW17: Leyton Orient | AX17: =DSUM(Data,$I$5,$BQ$27:$BR$28) -> 23 | AY17: =DCOUNT(Data,$J$5,$BQ$27:$BS$28) -> 6 | AZ17: =DCOUNT(Data,$J$5,$BT$27:$BV$28) -> 6 | BA17: 11 | BB17: =DSUM(Data,$F$5,$BQ$27:$BR$28) -> 24 | BC17: =DSUM(Data,$G$5,$BQ$27:$BR$28) -> 33 | BD17: -9 | BE17: =DSUM(Data,$J$5,$BQ$27:$BR$28) -> 24 | BF17: =DSUM(Data,$I$5,$BX$27:$BY$28) -> 23 | BG17: =DCOUNT(Data,$K$5,$BX$27:$BZ$28) -> 9 | BH17: =DCOUNT(Data,$J$5,$CA$27:$CC$28) -> 5 | BI17: 9 | BJ17: =DSUM(Data,$G$5,$BX$27:$BY$28) -> 21 | BK17: =DSUM(Data,$F$5,$BX$27:$BY$28) -> 24 | BL17: -3 | BM17: =DSUM(Data,$K$5,$BX$27:$BY$28) -> 32 | BQ17: Home (team) | BR17: Date | BS17: Pts1 | BT17: Home (team) | BU17: Date | BV17: Pts1 | BX17: Away (team) | BY17: Date | BZ17: Pts2 | CA17: Away (team) | CB17: Date | CC17: Pts2 | CG17: Millwall | CI17: 13
A18: 1 | B18: 2008-08-16T00:14:24 | C18: =IF(A18=9,D18+0.09,IF(A18=10,D18+0.1,IF(A18=11,D18+0.11,IF(A18=12,D18+0.12,0)))) -> 00:00:00 | D18: 2008-08-16 | E18: Brighton | F18: 1 | G18: 1 | H18: Bristol Rovers | I18: 1 | J18: =IF(F18>G18,3,IF(F18=G18,1,0)) -> 1 | K18: =IF(G18>F18,3,IF(G18=F18,1,0)) -> 1 | L18: 2008-08-16T00:14:24 | M18: 6210 | N18: Other | R18: 0 | S18: 9 | T18: Huddersfield | U18: 46 | V18: 9 | W18: 8 | X18: 6 | Y18: 32 | Z18: 28 | AA18: 4 | AB18: 35 | AC18: 9 | AD18: 6 | AE18: 8 | AF18: 30 | AG18: 37 | AH18: -7 | AI18: 33 | AJ18: 18 | AK18: 14 | AL18: 14 | AM18: 62 | AN18: 65 | AO18: -3 | AP18: 68 | AS18: 12 | AT18: <=26/09/08 | AU18: 2008-09-26 | AW18: Millwall | AX18: =DSUM(Data,$I$5,$BQ$29:$BR$30) -> 23 | AY18: =DCOUNT(Data,$J$5,$BQ$29:$BS$30) -> 13 | AZ18: =DCOUNT(Data,$J$5,$BT$29:$BV$30) -> 4 | BA18: 6 | BB18: =DSUM(Data,$F$5,$BQ$29:$BR$30) -> 30 | BC18: =DSUM(Data,$G$5,$BQ$29:$BR$30) -> 21 | BD18: 9 | BE18: =DSUM(Data,$J$5,$BQ$29:$BR$30) -> 43 | BF18: =DSUM(Data,$I$5,$BX$29:$BY$30) -> 23 | BG18: =DCOUNT(Data,$K$5,$BX$29:$BZ$30) -> 12 | BH18: =DCOUNT(Data,$J$5,$CA$29:$CC$30) -> 3 | BI18: 8 | BJ18: =DSUM(Data,$G$5,$BX$29:$BY$30) -> 33 | BK18: =DSUM(Data,$F$5,$BX$29:$BY$30) -> 32 | BL18: 1 | BM18: =DSUM(Data,$K$5,$BX$29:$BY$30) -> 39 | BQ18: =BA46 -> Hartlepool | BR18: =$BQ$1 -> <=05/05/09 | BS18: 3 | BT18: =BQ18 -> Hartlepool | BU18: =$BQ$1 -> <=05/05/09 | BV18: 1 | BX18: =$BQ18 -> Hartlepool | BY18: =$BQ$1 -> <=05/05/09 | BZ18: 3 | CA18: =$BQ18 -> Hartlepool | CB18: =$BQ$1 -> <=05/05/09 | CC18: 1 | CG18: MK Dons
A19: 2 | B19: 2008-08-16T00:28:48 | C19: 00:00:00 | D19: 2008-08-16 | E19: Carlisle | F19: 4 | G19: 2 | H19: Crewe | I19: 1 | J19: 3 | K19: 0 | L19: 2008-08-16T00:28:48 | M19: 6919 | N19: Other | R19: 0 | S19: 10 | T19: Oldham | U19: 46 | V19: 9 | W19: 9 | X19: 5 | Y19: 35 | Z19: 24 | AA19: 11 | AB19: 36 | AC19: 7 | AD19: 8 | AE19: 8 | AF19: 31 | AG19: 41 | AH19: -10 | AI19: 29 | AJ19: 16 | AK19: 17 | AL19: 13 | AM19: 66 | AN19: 65 | AO19: 1 | AP19: 65 | AS19: 13 | AT19: <=27/09/08 | AU19: 2008-09-27 | AW19: MK Dons | AX19: =DSUM(Data,$I$5,$BQ$31:$BR$32) -> 23 | AY19: =DCOUNT(Data,$J$5,$BQ$31:$BS$32) -> 12 | AZ19: =DCOUNT(Data,$J$5,$BT$31:$BV$32) -> 4 | BA19: 7 | BB19: =DSUM(Data,$F$5,$BQ$31:$BR$32) -> 42 | BC19: =DSUM(Data,$G$5,$BQ$31:$BR$32) -> 25 | BD19: 17 | BE19: =DSUM(Data,$J$5,$BQ$31:$BR$32) -> 40 | BF19: =DSUM(Data,$I$5,$BX$31:$BY$32) -> 23 | BG19: =DCOUNT(Data,$K$5,$BX$31:$BZ$32) -> 14 | BH19: =DCOUNT(Data,$J$5,$CA$31:$CC$32) -> 5 | BI19: 4 | BJ19: =DSUM(Data,$G$5,$BX$31:$BY$32) -> 41 | BK19: =DSUM(Data,$F$5,$BX$31:$BY$32) -> 22 | BL19: 19 | BM19: =DSUM(Data,$K$5,$BX$31:$BY$32) -> 47 | BQ19: Home (team) | BR19: Date | BS19: Pts1 | BT19: Home (team) | BU19: Date | BV19: Pts1 | BX19: Away (team) | BY19: Date | BZ19: Pts2 | CA19: Away (team) | CB19: Date | CC19: Pts2 | CG19: Northampton
A20: 3 | B20: 2008-08-16T00:43:12 | C20: 00:00:00 | D20: 2008-08-16 | E20: Cheltenham | F20: 2 | G20: 0 | H20: Swindon | I20: 1 | J20: 3 | K20: 0 | L20: 2008-08-16T00:43:12 | M20: 4975 | N20: Other | R20: 0 | S20: 11 | T20: Bristol Rovers | U20: 46 | V20: 11 | W20: 4 | X20: 8 | Y20: 44 | Z20: 29 | AA20: 15 | AB20: 37 | AC20: 6 | AD20: 8 | AE20: 9 | AF20: 35 | AG20: 32 | AH20: 3 | AI20: 26 | AJ20: 17 | AK20: 12 | AL20: 17 | AM20: 79 | AN20: 61 | AO20: 18 | AP20: 63 | AS20: 14 | AT20: <=28/09/08 | AU20: 2008-09-28 | AW20: Northampton | AX20: =DSUM(Data,$I$5,$BQ$33:$BR$34) -> 23 | AY20: =DCOUNT(Data,$J$5,$BQ$33:$BS$34) -> 8 | AZ20: =DCOUNT(Data,$J$5,$BT$33:$BV$34) -> 8 | BA20: 7 | BB20: =DSUM(Data,$F$5,$BQ$33:$BR$34) -> 38 | BC20: =DSUM(Data,$G$5,$BQ$33:$BR$34) -> 29 | BD20: 9 | BE20: =DSUM(Data,$J$5,$BQ$33:$BR$34) -> 32 | BF20: =DSUM(Data,$I$5,$BX$33:$BY$34) -> 23 | BG20: =DCOUNT(Data,$K$5,$BX$33:$BZ$34) -> 4 | BH20: =DCOUNT(Data,$J$5,$CA$33:$CC$34) -> 5 | BI20: 14 | BJ20: =DSUM(Data,$G$5,$BX$33:$BY$34) -> 23 | BK20: =DSUM(Data,$F$5,$BX$33:$BY$34) -> 36 | BL20: -13 | BM20: =DSUM(Data,$K$5,$BX$33:$BY$34) -> 17 | BQ20: =BA48 -> Hereford | BR20: =$BQ$1 -> <=05/05/09 | BS20: 3 | BT20: =BQ20 -> Hereford | BU20: =$BQ$1 -> <=05/05/09 | BV20: 1 | BX20: =$BQ20 -> Hereford | BY20: =$BQ$1 -> <=05/05/09 | BZ20: 3 | CA20: =$BQ20 -> Hereford | CB20: =$BQ$1 -> <=05/05/09 | CC20: 1 | CG20: Oldham
A21: 4 | B21: 2008-08-16T00:57:36 | C21: 00:00:00 | D21: 2008-08-16 | E21: Colchester | F21: 0 | G21: 0 | H21: Huddersfield | I21: 1 | J21: 1 | K21: 1 | L21: 2008-08-16T00:57:36 | M21: 5340 | N21: Other | R21: 0 | S21: 12 | T21: Colchester | U21: 46 | V21: 7 | W21: 4 | X21: 12 | Y21: 21 | Z21: 24 | AA21: -3 | AB21: 25 | AC21: 11 | AD21: 5 | AE21: 7 | AF21: 37 | AG21: 34 | AH21: 3 | AI21: 38 | AJ21: 18 | AK21: 9 | AL21: 19 | AM21: 58 | AN21: 58 | AO21: 0 | AP21: 63 | AS21: 15 | AT21: <=30/09/08 | AU21: 2008-09-30 | AW21: Oldham | AX21: =DSUM(Data,$I$5,$BQ$35:$BR$36) -> 23 | AY21: =DCOUNT(Data,$J$5,$BQ$35:$BS$36) -> 9 | AZ21: =DCOUNT(Data,$J$5,$BT$35:$BV$36) -> 9 | BA21: 5 | BB21: =DSUM(Data,$F$5,$BQ$35:$BR$36) -> 35 | BC21: =DSUM(Data,$G$5,$BQ$35:$BR$36) -> 24 | BD21: 11 | BE21: =DSUM(Data,$J$5,$BQ$35:$BR$36) -> 36 | BF21: =DSUM(Data,$I$5,$BX$35:$BY$36) -> 23 | BG21: =DCOUNT(Data,$K$5,$BX$35:$BZ$36) -> 7 | BH21: =DCOUNT(Data,$J$5,$CA$35:$CC$36) -> 8 | BI21: 8 | BJ21: =DSUM(Data,$G$5,$BX$35:$BY$36) -> 31 | BK21: =DSUM(Data,$F$5,$BX$35:$BY$36) -> 41 | BL21: -10 | BM21: =DSUM(Data,$K$5,$BX$35:$BY$36) -> 29 | BQ21: Home (team) | BR21: Date | BS21: Pts1 | BT21: Home (team) | BU21: Date | BV21: Pts1 | BX21: Away (team) | BY21: Date | BZ21: Pts2 | CA21: Away (team) | CB21: Date | CC21: Pts2 | CG21: Peterborough
A22: 5 | B22: 2008-08-16T01:12:00 | C22: 00:00:00 | D22: 2008-08-16 | E22: Hereford | F22: 1 | G22: 2 | H22: Yeovil | I22: 1 | J22: 0 | K22: 3 | L22: 2008-08-16T01:12:00 | M22: 3476 | N22: Other | Q22: =MATCH("Millwall",T10:T33,0) -> 5 | R22: 0 | S22: 13 | T22: Walsall | U22: 46 | V22: 10 | W22: 3 | X22: 10 | Y22: 34 | Z22: 36 | AA22: -2 | AB22: 33 | AC22: 7 | AD22: 7 | AE22: 9 | AF22: 27 | AG22: 30 | AH22: -3 | AI22: 28 | AJ22: 17 | AK22: 10 | AL22: 19 | AM22: 61 | AN22: 66 | AO22: -5 | AP22: 61 | AS22: 16 | AT22: <=03/10/08 | AU22: 2008-10-03 | AW22: Peterborough | AX22: =DSUM(Data,$I$5,$BQ$37:$BR$38) -> 23 | AY22: =DCOUNT(Data,$J$5,$BQ$37:$BS$38) -> 14 | AZ22: =DCOUNT(Data,$J$5,$BT$37:$BV$38) -> 6 | BA22: 3 | BB22: =DSUM(Data,$F$5,$BQ$37:$BR$38) -> 41 | BC22: =DSUM(Data,$G$5,$BQ$37:$BR$38) -> 22 | BD22: 19 | BE22: =DSUM(Data,$J$5,$BQ$37:$BR$38) -> 48 | BF22: =DSUM(Data,$I$5,$BX$37:$BY$38) -> 23 | BG22: =DCOUNT(Data,$K$5,$BX$37:$BZ$38) -> 12 | BH22: =DCOUNT(Data,$J$5,$CA$37:$CC$38) -> 5 | BI22: 6 | BJ22: =DSUM(Data,$G$5,$BX$37:$BY$38) -> 37 | BK22: =DSUM(Data,$F$5,$BX$37:$BY$38) -> 32 | BL22: 5 | BM22: =DSUM(Data,$K$5,$BX$37:$BY$38) -> 41 | BQ22: =BA50 -> Huddersfield | BR22: =$BQ$1 -> <=05/05/09 | BS22: 3 | BT22: =BQ22 -> Huddersfield | BU22: =$BQ$1 -> <=05/05/09 | BV22: 1 | BX22: =$BQ22 -> Huddersfield | BY22: =$BQ$1 -> <=05/05/09 | BZ22: 3 | CA22: =$BQ22 -> Huddersfield | CB22: =$BQ$1 -> <=05/05/09 | CC22: 1 | CG22: Scunthorpe
A23: 6 | B23: 2008-08-16T01:26:24 | C23: 00:00:00 | D23: 2008-08-16 | E23: Leeds United | F23: 0 | G23: 2 | H23: Oldham | I23: 1 | J23: 0 | K23: 3 | L23: 2008-08-16T01:26:24 | M23: 24631 | N23: Other | R23: 0 | S23: 14 | T23: Leyton Orient | U23: 46 | V23: 6 | W23: 6 | X23: 11 | Y23: 24 | Z23: 33 | AA23: -9 | AB23: 24 | AC23: 9 | AD23: 5 | AE23: 9 | AF23: 21 | AG23: 24 | AH23: -3 | AI23: 32 | AJ23: 15 | AK23: 11 | AL23: 20 | AM23: 45 | AN23: 57 | AO23: -12 | AP23: 56 | AS23: 17 | AT23: <=04/10/08 | AU23: 2008-10-04 | AW23: Scunthorpe | AX23: =DSUM(Data,$I$5,$BQ$39:$BR$40) -> 23 | AY23: =DCOUNT(Data,$J$5,$BQ$39:$BS$40) -> 13 | AZ23: =DCOUNT(Data,$J$5,$BT$39:$BV$40) -> 5 | BA23: 5 | BB23: =DSUM(Data,$F$5,$BQ$39:$BR$40) -> 44 | BC23: =DSUM(Data,$G$5,$BQ$39:$BR$40) -> 24 | BD23: 20 | BE23: =DSUM(Data,$J$5,$BQ$39:$BR$40) -> 44 | BF23: =DSUM(Data,$I$5,$BX$39:$BY$40) -> 23 | BG23: =DCOUNT(Data,$K$5,$BX$39:$BZ$40) -> 9 | BH23: =DCOUNT(Data,$J$5,$CA$39:$CC$40) -> 5 | BI23: 9 | BJ23: =DSUM(Data,$G$5,$BX$39:$BY$40) -> 38 | BK23: =DSUM(Data,$F$5,$BX$39:$BY$40) -> 39 | BL23: -1 | BM23: =DSUM(Data,$K$5,$BX$39:$BY$40) -> 32 | BQ23: Home (team) | BR23: Date | BS23: Pts1 | BT23: Home (team) | BU23: Date | BV23: Pts1 | BX23: Away (team) | BY23: Date | BZ23: Pts2 | CA23: Away (team) | CB23: Date | CC23: Pts2 | CG23: Southend
A24: 7 | B24: 2008-08-16T01:40:48 | C24: 00:00:00 | D24: 2008-08-16 | E24: MK Dons | F24: 1 | G24: 0 | H24: Northampton | I24: 1 | J24: 3 | K24: 0 | L24: 2008-08-16T01:40:48 | M24: 12078 | N24: Northampton | O24: MK Dons | R24: 0 | S24: 15 | T24: Swindon | U24: 46 | V24: 8 | W24: 7 | X24: 8 | Y24: 37 | Z24: 34 | AA24: 3 | AB24: 31 | AC24: 4 | AD24: 10 | AE24: 9 | AF24: 31 | AG24: 37 | AH24: -6 | AI24: 22 | AJ24: 12 | AK24: 17 | AL24: 17 | AM24: 68 | AN24: 71 | AO24: -3 | AP24: 53 | AS24: 18 | AT24: <=10/10/08 | AU24: 2008-10-10 | AW24: Southend | AX24: =DSUM(Data,$I$5,$BQ$41:$BR$42) -> 23 | AY24: =DCOUNT(Data,$J$5,$BQ$41:$BS$42) -> 13 | AZ24: =DCOUNT(Data,$J$5,$BT$41:$BV$42) -> 2 | BA24: 8 | BB24: =DSUM(Data,$F$5,$BQ$41:$BR$42) -> 29 | BC24: =DSUM(Data,$G$5,$BQ$41:$BR$42) -> 20 | BD24: 9 | BE24: =DSUM(Data,$J$5,$BQ$41:$BR$42) -> 41 | BF24: =DSUM(Data,$I$5,$BX$41:$BY$42) -> 23 | BG24: =DCOUNT(Data,$K$5,$BX$41:$BZ$42) -> 8 | BH24: =DCOUNT(Data,$J$5,$CA$41:$CC$42) -> 6 | BI24: 9 | BJ24: =DSUM(Data,$G$5,$BX$41:$BY$42) -> 29 | BK24: =DSUM(Data,$F$5,$BX$41:$BY$42) -> 41 | BL24: -12 | BM24: =DSUM(Data,$K$5,$BX$41:$BY$42) -> 30 | BQ24: =BA52 -> Leeds United | BR24: =$BQ$1 -> <=05/05/09 | BS24: 3 | BT24: =BQ24 -> Leeds United | BU24: =$BQ$1 -> <=05/05/09 | BV24: 1 | BX24: =$BQ24 -> Leeds United | BY24: =$BQ$1 -> <=05/05/09 | BZ24: 3 | CA24: =$BQ24 -> Leeds United | CB24: =$BQ$1 -> <=05/05/09 | CC24: 1 | CG24: Stockport
A25: 8 | B25: 2008-08-16T01:55:12 | C25: 00:00:00 | D25: 2008-08-16 | E25: Millwall | F25: 1 | G25: 1 | H25: Southend | I25: 1 | J25: 1 | K25: 1 | L25: 2008-08-16T01:55:12 | M25: 8114 | N25: Other | R25: 0 | S25: 16 | T25: Brighton | U25: 46 | V25: 6 | W25: 6 | X25: 11 | Y25: 32 | Z25: 40 | AA25: -8 | AB25: 24 | AC25: 7 | AD25: 7 | AE25: 9 | AF25: 23 | AG25: 30 | AH25: -7 | AI25: 28 | AJ25: 13 | AK25: 13 | AL25: 20 | AM25: 55 | AN25: 70 | AO25: -15 | AP25: 52 | AS25: 19 | AT25: <=11/10/08 | AU25: 2008-10-11 | AW25: Stockport | AX25: =DSUM(Data,$I$5,$BQ$43:$BR$44) -> 23 | AY25: =DCOUNT(Data,$J$5,$BQ$43:$BS$44) -> 9 | AZ25: =DCOUNT(Data,$J$5,$BT$43:$BV$44) -> 7 | BA25: 7 | BB25: =DSUM(Data,$F$5,$BQ$43:$BR$44) -> 34 | BC25: =DSUM(Data,$G$5,$BQ$43:$BR$44) -> 28 | BD25: 6 | BE25: =DSUM(Data,$J$5,$BQ$43:$BR$44) -> 34 | BF25: =DSUM(Data,$I$5,$BX$43:$BY$44) -> 23 | BG25: =DCOUNT(Data,$K$5,$BX$43:$BZ$44) -> 7 | BH25: =DCOUNT(Data,$J$5,$CA$43:$CC$44) -> 5 | BI25: 11 | BJ25: =DSUM(Data,$G$5,$BX$43:$BY$44) -> 25 | BK25: =DSUM(Data,$F$5,$BX$43:$BY$44) -> 29 | BL25: -4 | BM25: =DSUM(Data,$K$5,$BX$43:$BY$44) -> 26 | BQ25: Home (team) | BR25: Date | BS25: Pts1 | BT25: Home (team) | BU25: Date | BV25: Pts1 | BX25: Away (team) | BY25: Date | BZ25: Pts2 | CA25: Away (team) | CB25: Date | CC25: Pts2 | CG25: Swindon
A26: 9 | B26: 00:00:00 | C26: 2008-08-16T02:09:36 | D26: 2008-08-16 | E26: Peterborough | F26: 3 | G26: 0 | H26: Leyton Orient | I26: 1 | J26: 3 | K26: 0 | L26: 2008-08-16T02:09:36 | M26: 6643 | N26: Other | R26: 0 | S26: 17 | T26: Yeovil | U26: 46 | V26: 6 | W26: 10 | X26: 7 | Y26: 26 | Z26: 29 | AA26: -3 | AB26: 28 | AC26: 6 | AD26: 5 | AE26: 12 | AF26: 15 | AG26: 37 | AH26: -22 | AI26: 23 | AJ26: 12 | AK26: 15 | AL26: 19 | AM26: 41 | AN26: 66 | AO26: -25 | AP26: 51 | AS26: 20 | AT26: <=12/10/08 | AU26: 2008-10-12 | AW26: Swindon | AX26: =DSUM(Data,$I$5,$BQ$45:$BR$46) -> 23 | AY26: =DCOUNT(Data,$J$5,$BQ$45:$BS$46) -> 8 | AZ26: =DCOUNT(Data,$J$5,$BT$45:$BV$46) -> 7 | BA26: 8 | BB26: =DSUM(Data,$F$5,$BQ$45:$BR$46) -> 37 | BC26: =DSUM(Data,$G$5,$BQ$45:$BR$46) -> 34 | BD26: 3 | BE26: =DSUM(Data,$J$5,$BQ$45:$BR$46) -> 31 | BF26: =DSUM(Data,$I$5,$BX$45:$BY$46) -> 23 | BG26: =DCOUNT(Data,$K$5,$BX$45:$BZ$46) -> 4 | BH26: =DCOUNT(Data,$J$5,$CA$45:$CC$46) -> 10 | BI26: 9 | BJ26: =DSUM(Data,$G$5,$BX$45:$BY$46) -> 31 | BK26: =DSUM(Data,$F$5,$BX$45:$BY$46) -> 37 | BL26: -6 | BM26: =DSUM(Data,$K$5,$BX$45:$BY$46) -> 22 | BQ26: =BA54 -> Leicester | BR26: =$BQ$1 -> <=05/05/09 | BS26: 3 | BT26: =BQ26 -> Leicester | BU26: =$BQ$1 -> <=05/05/09 | BV26: 1 | BX26: =$BQ26 -> Leicester | BY26: =$BQ$1 -> <=05/05/09 | BZ26: 3 | CA26: =$BQ26 -> Leicester | CB26: =$BQ$1 -> <=05/05/09 | CC26: 1 | CG26: Tranmere
A27: 10 | B27: 00:00:00 | C27: 2008-08-16T02:24:00 | D27: 2008-08-16 | E27: Stockport | F27: 0 | G27: 0 | H27: Leicester | I27: 1 | J27: 1 | K27: 1 | L27: 2008-08-16T02:24:00 | M27: 7151 | N27: Other | R27: 0 | S27: 18 | T27: Stockport | U27: 46 | V27: 9 | W27: 7 | X27: 7 | Y27: 34 | Z27: 28 | AA27: 6 | AB27: 34 | AC27: 7 | AD27: 5 | AE27: 11 | AF27: 25 | AG27: 29 | AH27: -4 | AI27: 26 | AJ27: 16 | AK27: 12 | AL27: 18 | AM27: 59 | AN27: 57 | AO27: 2 | AP27: 50 | AS27: 21 | AT27: <=18/10/08 | AU27: 2008-10-18 | AW27: Tranmere | AX27: =DSUM(Data,$I$5,$BQ$47:$BR$48) -> 23 | AY27: =DCOUNT(Data,$J$5,$BQ$47:$BS$48) -> 15 | AZ27: =DCOUNT(Data,$J$5,$BT$47:$BV$48) -> 5 | BA27: 3 | BB27: =DSUM(Data,$F$5,$BQ$47:$BR$48) -> 41 | BC27: =DSUM(Data,$G$5,$BQ$47:$BR$48) -> 20 | BD27: 21 | BE27: =DSUM(Data,$J$5,$BQ$47:$BR$48) -> 50 | BF27: =DSUM(Data,$I$5,$BX$47:$BY$48) -> 23 | BG27: =DCOUNT(Data,$K$5,$BX$47:$BZ$48) -> 6 | BH27: =DCOUNT(Data,$J$5,$CA$47:$CC$48) -> 6 | BI27: 11 | BJ27: =DSUM(Data,$G$5,$BX$47:$BY$48) -> 21 | BK27: =DSUM(Data,$F$5,$BX$47:$BY$48) -> 29 | BL27: -8 | BM27: =DSUM(Data,$K$5,$BX$47:$BY$48) -> 24 | BQ27: Home (team) | BR27: Date | BS27: Pts1 | BT27: Home (team) | BU27: Date | BV27: Pts1 | BX27: Away (team) | BY27: Date | BZ27: Pts2 | CA27: Away (team) | CB27: Date | CC27: Pts2 | CG27: Walsall
A28: 11 | B28: 00:00:00 | C28: 2008-08-16T02:38:24 | D28: 2008-08-16 | E28: Tranmere | F28: 1 | G28: 0 | H28: Hartlepool | I28: 1 | J28: 3 | K28: 0 | L28: 2008-08-16T02:38:24 | M28: 5418 | N28: Other | R28: 0 | S28: 19 | T28: Hartlepool | U28: 46 | V28: 8 | W28: 7 | X28: 8 | Y28: 45 | Z28: 40 | AA28: 5 | AB28: 31 | AC28: 5 | AD28: 4 | AE28: 14 | AF28: 21 | AG28: 39 | AH28: -18 | AI28: 19 | AJ28: 13 | AK28: 11 | AL28: 22 | AM28: 66 | AN28: 79 | AO28: -13 | AP28: 50 | AS28: 22 | AT28: <=21/10/08 | AU28: 2008-10-21 | AW28: Walsall | AX28: =DSUM(Data,$I$5,$BQ$49:$BR$50) -> 23 | AY28: =DCOUNT(Data,$J$5,$BQ$49:$BS$50) -> 10 | AZ28: =DCOUNT(Data,$J$5,$BT$49:$BV$50) -> 3 | BA28: 10 | BB28: =DSUM(Data,$F$5,$BQ$49:$BR$50) -> 34 | BC28: =DSUM(Data,$G$5,$BQ$49:$BR$50) -> 36 | BD28: -2 | BE28: =DSUM(Data,$J$5,$BQ$49:$BR$50) -> 33 | BF28: =DSUM(Data,$I$5,$BX$49:$BY$50) -> 23 | BG28: =DCOUNT(Data,$K$5,$BX$49:$BZ$50) -> 7 | BH28: =DCOUNT(Data,$J$5,$CA$49:$CC$50) -> 7 | BI28: 9 | BJ28: =DSUM(Data,$G$5,$BX$49:$BY$50) -> 27 | BK28: =DSUM(Data,$F$5,$BX$49:$BY$50) -> 30 | BL28: -3 | BM28: =DSUM(Data,$K$5,$BX$49:$BY$50) -> 28 | BQ28: =BA56 -> Leyton Orient | BR28: =$BQ$1 -> <=05/05/09 | BS28: 3 | BT28: =BQ28 -> Leyton Orient | BU28: =$BQ$1 -> <=05/05/09 | BV28: 1 | BX28: =$BQ28 -> Leyton Orient | BY28: =$BQ$1 -> <=05/05/09 | BZ28: 3 | CA28: =$BQ28 -> Leyton Orient | CB28: =$BQ$1 -> <=05/05/09 | CC28: 1 | CG28: Yeovil
A29: 12 | B29: 00:00:00 | C29: 2008-08-16T02:52:48 | D29: 2008-08-16 | E29: Walsall | F29: 2 | G29: 1 | H29: Scunthorpe | I29: 1 | J29: 3 | K29: 0 | L29: 2008-08-16T02:52:48 | M29: 4162 | N29: Other | R29: 0 | S29: 20 | T29: Carlisle | U29: 46 | V29: 8 | W29: 7 | X29: 8 | Y29: 36 | Z29: 32 | AA29: 4 | AB29: 31 | AC29: 4 | AD29: 7 | AE29: 12 | AF29: 20 | AG29: 37 | AH29: -17 | AI29: 19 | AJ29: 12 | AK29: 14 | AL29: 20 | AM29: 56 | AN29: 69 | AO29: -13 | AP29: 50 | AS29: 23 | AT29: <=24/10/08 | AU29: 2008-10-24 | AW29: Yeovil | AX29: =DSUM(Data,$I$5,$BQ$51:$BR$52) -> 23 | AY29: =DCOUNT(Data,$J$5,$BQ$51:$BS$52) -> 6 | AZ29: =DCOUNT(Data,$J$5,$BT$51:$BV$52) -> 10 | BA29: 7 | BB29: =DSUM(Data,$F$5,$BQ$51:$BR$52) -> 26 | BC29: =DSUM(Data,$G$5,$BQ$51:$BR$52) -> 29 | BD29: -3 | BE29: =DSUM(Data,$J$5,$BQ$51:$BR$52) -> 28 | BF29: =DSUM(Data,$I$5,$BX$51:$BY$52) -> 23 | BG29: =DCOUNT(Data,$K$5,$BX$51:$BZ$52) -> 6 | BH29: =DCOUNT(Data,$J$5,$CA$51:$CC$52) -> 5 | BI29: =SUM(BF29-BG29-BH29) -> 12 | BJ29: =DSUM(Data,$G$5,$BX$51:$BY$52) -> 15 | BK29: =DSUM(Data,$F$5,$BX$51:$BY$52) -> 37 | BL29: =SUM(BJ29-BK29) -> -22 | BM29: =DSUM(Data,$K$5,$BX$51:$BY$52) -> 23 | BQ29: Home (team) | BR29: Date | BS29: Pts1 | BT29: Home (team) | BU29: Date | BV29: Pts1 | BX29: Away (team) | BY29: Date | BZ29: Pts2 | CA29: Away (team) | CB29: Date | CC29: Pts2
A30: 1 | B30: 2008-08-22T00:14:24 | C30: =IF(A30=9,D30+0.09,IF(A30=10,D30+0.1,IF(A30=11,D30+0.11,IF(A30=12,D30+0.12,0)))) -> 00:00:00 | D30: 2008-08-22 | E30: Southend | F30: 0 | G30: 2 | H30: Brighton | I30: 1 | J30: =IF(F30>G30,3,IF(F30=G30,1,0)) -> 0 | K30: =IF(G30>F30,3,IF(G30=F30,1,0)) -> 3 | L30: 2008-08-22T00:14:24 | M30: 7976 | N30: Other | R30: 0 | S30: 21 | T30: Northampton | U30: 46 | V30: 8 | W30: 8 | X30: 7 | Y30: 38 | Z30: 29 | AA30: 9 | AB30: 32 | AC30: 4 | AD30: 5 | AE30: 14 | AF30: 23 | AG30: 36 | AH30: -13 | AI30: 17 | AJ30: 12 | AK30: 13 | AL30: 21 | AM30: 61 | AN30: 65 | AO30: -4 | AP30: 49 | AS30: 24 | AT30: <=25/10/08 | AU30: 2008-10-25 | BQ30: =BA58 -> Millwall | BR30: =$BQ$1 -> <=05/05/09 | BS30: 3 | BT30: =BQ30 -> Millwall | BU30: =$BQ$1 -> <=05/05/09 | BV30: 1 | BX30: =$BQ30 -> Millwall | BY30: =$BQ$1 -> <=05/05/09 | BZ30: 3 | CA30: =$BQ30 -> Millwall | CB30: =$BQ$1 -> <=05/05/09 | CC30: 1
A31: 1 | B31: 2008-08-23T00:14:24 | C31: 00:00:00 | D31: 2008-08-23 | E31: Bristol Rovers | F31: 6 | G31: 1 | H31: Hereford | I31: 1 | J31: 3 | K31: 0 | L31: 2008-08-23T00:14:24 | M31: 6735 | N31: Other | R31: 0 | S31: 22 | T31: Crewe | U31: 46 | V31: 8 | W31: 4 | X31: 11 | Y31: 30 | Z31: 38 | AA31: -8 | AB31: 28 | AC31: 4 | AD31: 6 | AE31: 13 | AF31: 29 | AG31: 44 | AH31: -15 | AI31: 18 | AJ31: 12 | AK31: 10 | AL31: 24 | AM31: 59 | AN31: 82 | AO31: -23 | AP31: 46 | AS31: 25 | AT31: <=28/10/08 | AU31: 2008-10-28 | BQ31: Home (team) | BR31: Date | BS31: Pts1 | BT31: Home (team) | BU31: Date | BV31: Pts1 | BX31: Away (team) | BY31: Date | BZ31: Pts2 | CA31: Away (team) | CB31: Date | CC31: Pts2
A32: 2 | B32: 2008-08-23T00:28:48 | C32: 00:00:00 | D32: 2008-08-23 | E32: Crewe | F32: 2 | G32: 1 | H32: Walsall | I32: 1 | J32: 3 | K32: 0 | L32: 2008-08-23T00:28:48 | M32: 4160 | N32: Other | R32: 0 | S32: 23 | T32: Cheltenham | U32: 46 | V32: 7 | W32: 6 | X32: 10 | Y32: 30 | Z32: 38 | AA32: -8 | AB32: 27 | AC32: 2 | AD32: 6 | AE32: 15 | AF32: 21 | AG32: 53 | AH32: -32 | AI32: 12 | AJ32: 9 | AK32: 12 | AL32: 25 | AM32: 51 | AN32: 91 | AO32: -40 | AP32: 39 | AS32: 26 | AT32: <=01/11/08 | AU32: 2008-11-01 | BQ32: =BA60 -> MK Dons | BR32: =$BQ$1 -> <=05/05/09 | BS32: 3 | BT32: =BQ32 -> MK Dons | BU32: =$BQ$1 -> <=05/05/09 | BV32: 1 | BX32: =$BQ32 -> MK Dons | BY32: =$BQ$1 -> <=05/05/09 | BZ32: 3 | CA32: =$BQ32 -> MK Dons | CB32: =$BQ$1 -> <=05/05/09 | CC32: 1
A33: 3 | B33: 2008-08-23T00:43:12 | C33: 00:00:00 | D33: 2008-08-23 | E33: Hartlepool | F33: 0 | G33: 1 | H33: Stockport | I33: 1 | J33: 0 | K33: 3 | L33: 2008-08-23T00:43:12 | M33: 3945 | N33: Other | R33: 0 | S33: 24 | T33: Hereford | U33: 46 | V33: 6 | W33: 4 | X33: 13 | Y33: 23 | Z33: 28 | AA33: -5 | AB33: 22 | AC33: 3 | AD33: 3 | AE33: 17 | AF33: 19 | AG33: 51 | AH33: -32 | AI33: 12 | AJ33: 9 | AK33: 7 | AL33: 30 | AM33: 42 | AN33: 79 | AO33: -37 | AP33: 34 | AS33: 27 | AT33: <=11/11/08 | AU33: 2008-11-11 | BQ33: Home (team) | BR33: Date | BS33: Pts1 | BT33: Home (team) | BU33: Date | BV33: Pts1 | BX33: Away (team) | BY33: Date | BZ33: Pts2 | CA33: Away (team) | CB33: Date | CC33: Pts2
A34: 4 | B34: 2008-08-23T00:57:36 | C34: 00:00:00 | D34: 2008-08-23 | E34: Huddersfield | F34: 1 | G34: 3 | H34: MK Dons | I34: 1 | J34: 0 | K34: 3 | L34: 2008-08-23T00:57:36 | M34: 13189 | N34: Other | AS34: 28 | AT34: <=14/11/08 | AU34: 2008-11-14 | AW34: Brighton | AX34: =SUM(AY6:BA6) -> 23 | AY34: =SUM(BG6:BI6) -> 23 | BA34: Brighton | BD34: =BF33&" "&BJ33&" "&BH33&"-"&BI33 -> - | BF34: Oldham | BG34: (A) | BH34: 3 | BI34: 4 | BJ34: =IF(BH34>BI34,"W",IF(BH34<BI34,"L","D")) -> L | BK34: =BF34&" "&BG34 -> Oldham (A) | BM34: =IF(BH34>BI34,3,IF(BH34<BI34,0,1)) -> 0 | BN34: =BM34 -> 0 | BQ34: =BA62 -> Northampton | BR34: =$BQ$1 -> <=05/05/09 | BS34: 3 | BT34: =BQ34 -> Northampton | BU34: =$BQ$1 -> <=05/05/09 | BV34: 1 | BX34: =$BQ34 -> Northampton | BY34: =$BQ$1 -> <=05/05/09 | BZ34: 3 | CA34: =$BQ34 -> Northampton | CB34: =$BQ$1 -> <=05/05/09 | CC34: 1
A35: 5 | B35: 2008-08-23T01:12:00 | C35: 00:00:00 | D35: 2008-08-23 | E35: Leicester | F35: 3 | G35: 1 | H35: Tranmere | I35: 1 | J35: 3 | K35: 0 | L35: 2008-08-23T01:12:00 | M35: 17798 | N35: Other | AS35: 29 | AT35: <=15/11/08 | AU35: 2008-11-15 | AW35: Bristol Rovers | AX35: 23 | AY35: 23 | BA35: Brighton | BC35: 1 | BD35: =BF34&" "&BG34&" "&BJ34&" "&BH34&"-"&BI34 -> Oldham (A) L 3-4 | BE35: =BN34&" "&"Pts" -> 0 Pts | BF35: Southend | BG35: (H) | BH35: 1 | BI35: 1 | BJ35: =IF(BH35>BI35,"W",IF(BH35<BI35,"L","D")) -> D | BK35: =BF35&" "&BG35 -> Southend (H) | BM35: =IF(BH35>BI35,3,IF(BH35<BI35,0,1)) -> 1 | BN35: =SUM(BM$34:BM35) -> 1 | BQ35: Home (team) | BR35: Date | BS35: Pts1 | BT35: Home (team) | BU35: Date | BV35: Pts1 | BX35: Away (team) | BY35: Date | BZ35: Pts2 | CA35: Away (team) | CB35: Date | CC35: Pts2
A36: 6 | B36: 2008-08-23T01:26:24 | C36: 00:00:00 | D36: 2008-08-23 | E36: Leyton Orient | F36: 0 | G36: 0 | H36: Carlisle | I36: 1 | J36: 1 | K36: 1 | L36: 2008-08-23T01:26:24 | M36: 3803 | N36: Other | AS36: 30 | AT36: <=22/11/08 | AU36: 2008-11-22 | AW36: Carlisle | AX36: 23 | AY36: 23 | BA36: Bristol Rovers | BC36: 2 | BD36: =BF35&" "&BG35&" "&BJ35&" "&BH35&"-"&BI35 -> Southend (H) D 1-1 | BE36: 1 Pts | BF36: Northampton | BG36: (A) | BH36: 0 | BI36: 0 | BJ36: D | BK36: Northampton (A) | BM36: 1 | BN36: =SUM(BM$34:BM36) -> 2 | BQ36: =BA64 -> Oldham | BR36: =$BQ$1 -> <=05/05/09 | BS36: 3 | BT36: =BQ36 -> Oldham | BU36: =$BQ$1 -> <=05/05/09 | BV36: 1 | BX36: =$BQ36 -> Oldham | BY36: =$BQ$1 -> <=05/05/09 | BZ36: 3 | CA36: =$BQ36 -> Oldham | CB36: =$BQ$1 -> <=05/05/09 | CC36: 1
A37: 7 | B37: 2008-08-23T01:40:48 | C37: 00:00:00 | D37: 2008-08-23 | E37: Northampton | F37: 0 | G37: 0 | H37: Millwall | I37: 1 | J37: 1 | K37: 1 | L37: 2008-08-23T01:40:48 | M37: 4402 | N37: Northampton | O37: Millwall | T37: Results | V37: =AI2 -> Saturday | AA37: =AO2 -> 2009-05-02 | AF37: League One Season 2008/09 | AS37: 31 | AT37: <=25/11/08 | AU37: 2008-11-25 | AW37: Cheltenham | AX37: 23 | AY37: 23 | BA37: Bristol Rovers | BC37: 3 | BD37: Northampton (A) D 0-0 | BE37: 2 Pts | BF37: Huddersfield | BG37: (H) | BH37: 2 | BI37: 1 | BJ37: W | BK37: Huddersfield (H) | BM37: 3 | BN37: =SUM(BM$34:BM37) -> 5 | BQ37: Home (team) | BR37: Date | BS37: Pts1 | BT37: Home (team) | BU37: Date | BV37: Pts1 | BX37: Away (team) | BY37: Date | BZ37: Pts2 | CA37: Away (team) | CB37: Date | CC37: Pts2
A38: 8 | B38: 2008-08-23T01:55:12 | C38: 00:00:00 | D38: 2008-08-23 | E38: Oldham | F38: 4 | G38: 0 | H38: Cheltenham | I38: 1 | J38: 3 | K38: 0 | L38: 2008-08-23T01:55:12 | M38: 4673 | N38: Other | AS38: 32 | AT38: <=29/11/08 | AU38: 2008-11-29 | AW38: Colchester | AX38: 23 | AY38: 23 | BA38: Carlisle | BC38: 4 | BD38: Huddersfield (H) W 2-1 | BE38: 5 Pts | BF38: Hartlepool | BG38: (H) | BH38: 2 | BI38: 0 | BJ38: W | BK38: Hartlepool (H) | BM38: 3 | BN38: =SUM(BM$34:BM38) -> 8 | BQ38: =BA66 -> Peterborough | BR38: =$BQ$1 -> <=05/05/09 | BS38: 3 | BT38: =BQ38 -> Peterborough | BU38: =$BQ$1 -> <=05/05/09 | BV38: 1 | BX38: =$BQ38 -> Peterborough | BY38: =$BQ$1 -> <=05/05/09 | BZ38: 3 | CA38: =$BQ38 -> Peterborough | CB38: =$BQ$1 -> <=05/05/09 | CC38: 1
A39: 9 | B39: 00:00:00 | C39: 2008-08-23T02:09:36 | D39: 2008-08-23 | E39: Scunthorpe | F39: 1 | G39: 0 | H39: Peterborough | I39: 1 | J39: 3 | K39: 0 | L39: 2008-08-23T02:09:36 | M39: 4717 | N39: Other | T39: =IF($I2052=0,D2052," ") -> 2009-05-02 | V39: =IF($I2052=0,E2052," ") -> Brighton | AA39: =IF($I2052=0,F2052," ") -> 1 | AB39: =IF($I2052=0,"-"," ") -> - | AC39: =IF($I2052=0,G2052," ") -> 0 | AE39: =IF($I2052=0,H2052," ") -> Stockport | AK39: =IF($I2052=0,L2052," ") -> 8618 | AS39: 33 | AT39: <=06/12/08 | AU39: 2008-12-06 | AW39: Crewe | AX39: 23 | AY39: 23 | BA39: Carlisle | BC39: 5 | BD39: Hartlepool (H) W 2-0 | BE39: 8 Pts | BF39: Leicester City | BG39: (A) | BH39: 1 | BI39: 0 | BJ39: W | BK39: Leicester City (A) | BM39: 3 | BN39: =SUM(BM$34:BM39) -> 11 | BQ39: Home (team) | BR39: Date | BS39: Pts1 | BT39: Home (team) | BU39: Date | BV39: Pts1 | BX39: Away (team) | BY39: Date | BZ39: Pts2 | CA39: Away (team) | CB39: Date | CC39: Pts2
A40: 10 | B40: 00:00:00 | C40: 2008-08-23T02:24:00 | D40: 2008-08-23 | E40: Swindon | F40: 1 | G40: 3 | H40: Colchester | I40: 1 | J40: 0 | K40: 3 | L40: 2008-08-23T02:24:00 | M40: 7031 | N40: Other | T40: =IF($I2053=0,D2053," ") -> 2009-05-02 | V40: =IF($I2053=0,E2053," ") -> Bristol Rovers | AA40: =IF($I2053=0,F2053," ") -> 4 | AB40: - | AC40: =IF($I2053=0,G2053," ") -> 1 | AE40: =IF($I2053=0,H2053," ") -> Hartlepool | AK40: =IF($I2053=0,L2053," ") -> 7363 | AS40: 34 | AT40: <=12/12/08 | AU40: 2008-12-12 | AW40: Hartlepool | AX40: 23 | AY40: 23 | BA40: Cheltenham | BC40: 6 | BD40: Leicester City (A) W 1-0 | BE40: 11 Pts | BF40: Cheltenham | BG40: (H) | BH40: 2 | BI40: 0 | BJ40: W | BK40: Cheltenham (H) | BM40: 3 | BN40: =SUM(BM$34:BM40) -> 14 | BQ40: =BA68 -> Scunthorpe | BR40: =$BQ$1 -> <=05/05/09 | BS40: 3 | BT40: =BQ40 -> Scunthorpe | BU40: =$BQ$1 -> <=05/05/09 | BV40: 1 | BX40: =$BQ40 -> Scunthorpe | BY40: =$BQ$1 -> <=05/05/09 | BZ40: 3 | CA40: =$BQ40 -> Scunthorpe | CB40: =$BQ$1 -> <=05/05/09 | CC40: 1
A41: 11 | B41: 00:00:00 | C41: 2008-08-23T02:38:24 | D41: 2008-08-23 | E41: Yeovil | F41: 1 | G41: 1 | H41: Leeds United | I41: 1 | J41: 1 | K41: 1 | L41: 2008-08-23T02:38:24 | M41: 6580 | N41: Other | T41: 2009-05-02 | V41: Carlisle | AA41: 2 | AB41: - | AC41: 0 | AE41: Millwall | AK41: 9470 | AS41: 35 | AT41: <=13/12/08 | AU41: 2008-12-13 | AW41: Hereford | AX41: 23 | AY41: 23 | BA41: Cheltenham | BC41: 7 | BD41: Cheltenham (H) W 2-0 | BE41: 14 Pts | BF41: Swindon | BG41: (A) | BH41: 2 | BI41: 1 | BJ41: W | BK41: Swindon (A) | BM41: 3 | BN41: =SUM(BM$34:BM41) -> 17 | BQ41: Home (team) | BR41: Date | BS41: Pts1 | BT41: Home (team) | BU41: Date | BV41: Pts1 | BX41: Away (team) | BY41: Date | BZ41: Pts2 | CA41: Away (team) | CB41: Date | CC41: Pts2
A42: 1 | B42: 2008-08-30T00:14:24 | C42: 00:00:00 | D42: 2008-08-30 | E42: Brighton | F42: 0 | G42: 0 | H42: Leyton Orient | I42: 1 | J42: =IF(F42>G42,3,IF(F42=G42,1,0)) -> 1 | K42: =IF(G42>F42,3,IF(G42=F42,1,0)) -> 1 | L42: 2008-08-30T00:14:24 | M42: 6675 | N42: Other | T42: 2009-05-02 | V42: Crewe | AA42: 0 | AB42: - | AC42: 3 | AE42: Leicester | AK42: 6982 | AS42: 36 | AT42: <=19/12/08 | AU42: 2008-12-19 | AW42: Huddersfield | AX42: 23 | AY42: 23 | BA42: Colchester | BC42: 8 | BD42: Swindon (A) W 2-1 | BE42: 17 Pts | BF42: MK Dons | BG42: (H) | BH42: 0 | BI42: 4 | BJ42: L | BK42: MK Dons (H) | BM42: 0 | BN42: =SUM(BM$34:BM42) -> 17 | BQ42: =BA70 -> Southend | BR42: =$BQ$1 -> <=05/05/09 | BS42: 3 | BT42: =BQ42 -> Southend | BU42: =$BQ$1 -> <=05/05/09 | BV42: 1 | BX42: =$BQ42 -> Southend | BY42: =$BQ$1 -> <=05/05/09 | BZ42: 3 | CA42: =$BQ42 -> Southend | CB42: =$BQ$1 -> <=05/05/09 | CC42: 1
A43: 2 | B43: 2008-08-30T00:28:48 | C43: 00:00:00 | D43: 2008-08-30 | E43: Carlisle | F43: 4 | G43: 1 | H43: Yeovil | I43: 1 | J43: 3 | K43: 0 | L43: 2008-08-30T00:28:48 | M43: 6286 | N43: Other | T43: 2009-05-02 | V43: Hereford | AA43: 0 | AB43: - | AC43: 1 | AE43: MK Dons | AK43: 3224 | AS43: 37 | AT43: <=20/12/08 | AU43: 2008-12-20 | AW43: Leeds United | AX43: 23 | AY43: 23 | BA43: Colchester | BC43: 9 | BD43: MK Dons (H) L 0-4 | BE43: 17 Pts | BF43: Tranmere | BG43: (A) | BH43: 3 | BI43: 1 | BJ43: W | BK43: Tranmere (A) | BM43: 3 | BN43: =SUM(BM$34:BM43) -> 20 | BQ43: Home (team) | BR43: Date | BS43: Pts1 | BT43: Home (team) | BU43: Date | BV43: Pts1 | BX43: Away (team) | BY43: Date | BZ43: Pts2 | CA43: Away (team) | CB43: Date | CC43: Pts2
A44: 3 | B44: 2008-08-30T00:43:12 | C44: 00:00:00 | D44: 2008-08-30 | E44: Cheltenham | F44: 0 | G44: 4 | H44: Leicester | I44: 1 | J44: 0 | K44: 3 | L44: 2008-08-30T00:43:12 | M44: 5344 | N44: Other | T44: 2009-05-02 | V44: Leeds United | AA44: 3 | AB44: - | AC44: 0 | AE44: Northampton | AK44: 34214 | AS44: 38 | AT44: <=26/12/08 | AU44: 2008-12-26 | AW44: Leicester | AX44: 23 | AY44: 23 | BA44: Crewe | BC44: 10 | BD44: Tranmere (A) W 3-1 | BE44: 20 Pts | BF44: Leeds Utd | BG44: (H) | BH44: 3 | BI44: 1 | BJ44: W | BK44: Leeds Utd (H) | BM44: 3 | BN44: =SUM(BM$34:BM44) -> 23 | BQ44: =BA72 -> Stockport | BR44: =$BQ$1 -> <=05/05/09 | BS44: 3 | BT44: =BQ44 -> Stockport | BU44: =$BQ$1 -> <=05/05/09 | BV44: 1 | BX44: =$BQ44 -> Stockport | BY44: =$BQ$1 -> <=05/05/09 | BZ44: 3 | CA44: =$BQ44 -> Stockport | CB44: =$BQ$1 -> <=05/05/09 | CC44: 1
A45: 4 | B45: 2008-08-30T00:57:36 | C45: =IF(A45=9,D45+0.09,IF(A45=10,D45+0.1,IF(A45=11,D45+0.11,IF(A45=12,D45+0.12,0)))) -> 00:00:00 | D45: 2008-08-30 | E45: Colchester | F45: 2 | G45: 2 | H45: Oldham | I45: 1 | J45: 1 | K45: 1 | L45: 2008-08-30T00:57:36 | M45: 4708 | N45: Other | T45: 2009-05-02 | V45: Leyton Orient | AA45: 1 | AB45: - | AC45: 1 | AE45: Huddersfield | AK45: 5371 | AS45: 39 | AT45: <=28/12/08 | AU45: 2008-12-28 | AW45: Leyton Orient | AX45: 23 | AY45: 23 | BA45: Crewe | BC45: 11 | BD45: Leeds Utd (H) W 3-1 | BE45: 23 Pts | BF45: Colchester | BG45: (A) | BH45: 2 | BI45: 1 | BJ45: W | BK45: Colchester (A) | BM45: 3 | BN45: =SUM(BM$34:BM45) -> 26 | BQ45: Home (team) | BR45: Date | BS45: Pts1 | BT45: Home (team) | BU45: Date | BV45: Pts1 | BX45: Away (team) | BY45: Date | BZ45: Pts2 | CA45: Away (team) | CB45: Date | CC45: Pts2
A46: 5 | B46: 2008-08-30T01:12:00 | C46: 00:00:00 | D46: 2008-08-30 | E46: Hereford | F46: 2 | G46: 0 | H46: Crewe | I46: 1 | J46: 3 | K46: 0 | L46: 2008-08-30T01:12:00 | M46: 2894 | N46: Other | T46: 2009-05-02 | V46: Peterborough | AA46: 2 | AB46: - | AC46: 2 | AE46: Swindon | AK46: 10886 | AS46: 40 | AT46: <=03/01/09 | AU46: 2009-01-03 | AW46: Millwall | AX46: 23 | AY46: 23 | BA46: Hartlepool | BC46: 12 | BD46: Colchester (A) W 2-1 | BE46: 26 Pts | BF46: Scunthorpe | BG46: (A) | BH46: 2 | BI46: 3 | BJ46: L | BK46: Scunthorpe (A) | BM46: 0 | BN46: =SUM(BM$34:BM46) -> 26 | BQ46: =BA74 -> Swindon | BR46: =$BQ$1 -> <=05/05/09 | BS46: 3 | BT46: =BQ46 -> Swindon | BU46: =$BQ$1 -> <=05/05/09 | BV46: 1 | BX46: =$BQ46 -> Swindon | BY46: =$BQ$1 -> <=05/05/09 | BZ46: 3 | CA46: =$BQ46 -> Swindon | CB46: =$BQ$1 -> <=05/05/09 | CC46: 1
A47: 6 | B47: 2008-08-30T01:26:24 | C47: 00:00:00 | D47: 2008-08-30 | E47: Leeds United | F47: 2 | G47: 2 | H47: Bristol Rovers | I47: 1 | J47: 1 | K47: 1 | L47: 2008-08-30T01:26:24 | M47: 21024 | N47: Other | T47: 2009-05-02 | V47: Scunthorpe | AA47: 1 | AB47: - | AC47: 1 | AE47: Tranmere | AK47: 8029 | AS47: 41 | AT47: <=10/01/09 | AU47: 2009-01-10 | AW47: MK Dons | AX47: 23 | AY47: 23 | BA47: Hartlepool | BC47: 13 | BD47: Scunthorpe (A) L 2-3 | BE47: 26 Pts | BF47: Hereford | BG47: (H) | BH47: 1 | BI47: 0 | BJ47: W | BK47: Hereford (H) | BM47: 3 | BN47: =SUM(BM$34:BM47) -> 29 | BQ47: Home (team) | BR47: Date | BS47: Pts1 | BT47: Home (team) | BU47: Date | BV47: Pts1 | BX47: Away (team) | BY47: Date | BZ47: Pts2 | CA47: Away (team) | CB47: Date | CC47: Pts2
A48: 7 | B48: 2008-08-30T01:40:48 | C48: 00:00:00 | D48: 2008-08-30 | E48: MK Dons | F48: 1 | G48: 2 | H48: Swindon | I48: 1 | J48: 0 | K48: 3 | L48: 2008-08-30T01:40:48 | M48: 8846 | N48: Other | T48: 2009-05-02 | V48: Southend | AA48: 2 | AB48: - | AC48: 0 | AE48: Cheltenham | AK48: 8192 | AS48: 42 | AT48: <=12/01/09 | AU48: 2009-01-12 | AW48: Northampton | AX48: 23 | AY48: 23 | BA48: Hereford | BC48: 14 | BD48: Hereford (H) W 1-0 | BE48: 29 Pts | BF48: Brighton | BG48: (A) | BH48: 1 | BI48: 4 | BJ48: L | BK48: Brighton (A) | BM48: 0 | BN48: =SUM(BM$34:BM48) -> 29 | BQ48: =BA76 -> Tranmere | BR48: =$BQ$1 -> <=05/05/09 | BS48: 3 | BT48: =BQ48 -> Tranmere | BU48: =$BQ$1 -> <=05/05/09 | BV48: 1 | BX48: =$BQ48 -> Tranmere | BY48: =$BQ$1 -> <=05/05/09 | BZ48: 3 | CA48: =$BQ48 -> Tranmere | CB48: =$BQ$1 -> <=05/05/09 | CC48: 1
A49: 8 | B49: 2008-08-30T01:55:12 | C49: 00:00:00 | D49: 2008-08-30 | E49: Millwall | F49: 2 | G49: 1 | H49: Huddersfield | I49: 1 | J49: 3 | K49: 0 | L49: 2008-08-30T01:55:12 | M49: 7513 | N49: Other | T49: 2009-05-02 | V49: Walsall | AA49: 1 | AB49: - | AC49: 2 | AE49: Oldham | AK49: 4807 | AS49: 43 | AT49: <=13/01/09 | AU49: 2009-01-13 | AW49: Oldham | AX49: 23 | AY49: 23 | BA49: Hereford | BC49: 15 | BD49: Brighton (A) L 1-4 | BE49: 29 Pts | BF49: Stockport | BG49: (H) | BH49: 1 | BI49: 0 | BJ49: W | BK49: Stockport (H) | BM49: 3 | BN49: =SUM(BM$34:BM49) -> 32 | BQ49: Home (team) | BR49: Date | BS49: Pts1 | BT49: Home (team) | BU49: Date | BV49: Pts1 | BX49: Away (team) | BY49: Date | BZ49: Pts2 | CA49: Away (team) | CB49: Date | CC49: Pts2
A50: 9 | B50: 00:00:00 | C50: 2008-08-30T02:09:36 | D50: 2008-08-30 | E50: Peterborough | F50: 1 | G50: 2 | H50: Hartlepool | I50: 1 | J50: 0 | K50: 3 | L50: 2008-08-30T02:09:36 | M50: 5728 | N50: Other | T50: =IF($I2063=0,D2063," ") -> 2009-05-02 | V50: =IF($I2063=0,E2063," ") -> Yeovil | AA50: =IF($I2063=0,F2063," ") -> 0 | AB50: =IF($I2063=0,"-"," ") -> - | AC50: =IF($I2063=0,G2063," ") -> 2 | AE50: =IF($I2063=0,H2063," ") -> Colchester | AK50: 5237 | AS50: 44 | AT50: <=16/01/09 | AU50: 2009-01-16 | AW50: Peterborough | AX50: 23 | AY50: 23 | BA50: Huddersfield | BC50: 16 | BD50: Stockport (H) W 1-0 | BE50: 32 Pts | BF50: Leyton Orient | BG50: (A) | BH50: 0 | BI50: 0 | BJ50: D | BK50: Leyton Orient (A) | BM50: 1 | BN50: =SUM(BM$34:BM50) -> 33 | BQ50: =BA78 -> Walsall | BR50: =$BQ$1 -> <=05/05/09 | BS50: 3 | BT50: =BQ50 -> Walsall | BU50: =$BQ$1 -> <=05/05/09 | BV50: 1 | BX50: =$BQ50 -> Walsall | BY50: =$BQ$1 -> <=05/05/09 | BZ50: 3 | CA50: =$BQ50 -> Walsall | CB50: =$BQ$1 -> <=05/05/09 | CC50: 1
A51: 10 | B51: 00:00:00 | C51: 2008-08-30T02:24:00 | D51: 2008-08-30 | E51: Stockport | F51: 0 | G51: 3 | H51: Scunthorpe | I51: 1 | J51: 0 | K51: 3 | L51: 2008-08-30T02:24:00 | M51: 6348 | N51: Other | AS51: 45 | AT51: <=17/01/09 | AU51: 2009-01-17 | AW51: Scunthorpe | AX51: 23 | AY51: 23 | BA51: Huddersfield | BC51: 17 | BD51: Leyton Orient (A) D 0-0 | BE51: 33 Pts | BF51: Carlisle | BG51: (H) | BH51: 1 | BI51: 0 | BJ51: W | BK51: Carlisle (H) | BM51: 3 | BN51: =SUM(BM$34:BM51) -> 36 | BQ51: Home (team) | BR51: Date | BS51: Pts1 | BT51: Home (team) | BU51: Date | BV51: Pts1 | BX51: Away (team) | BY51: Date | BZ51: Pts2 | CA51: Away (team) | CB51: Date | CC51: Pts2
A52: 11 | B52: 00:00:00 | C52: 2008-08-30T02:38:24 | D52: 2008-08-30 | E52: Tranmere | F52: 4 | G52: 1 | H52: Northampton | I52: 1 | J52: 3 | K52: 0 | L52: 2008-08-30T02:38:24 | M52: 5034 | N52: Northampton | O52: Tranmere | AS52: 46 | AT52: <=19/01/09 | AU52: 2009-01-19 | AW52: Southend | AX52: 23 | AY52: 23 | BA52: Leeds United | BC52: 18 | BD52: Carlisle (H) W 1-0 | BE52: 36 Pts | BF52: Bristol Rovers | BG52: (H) | BH52: 3 | BI52: 2 | BJ52: W | BK52: Bristol Rovers (H) | BM52: 3 | BN52: =SUM(BM$34:BM52) -> 39 | BQ52: =BA80 -> Yeovil | BR52: =$BQ$1 -> <=05/05/09 | BS52: 3 | BT52: =BQ52 -> Yeovil | BU52: =$BQ$1 -> <=05/05/09 | BV52: 1 | BX52: =$BQ52 -> Yeovil | BY52: =$BQ$1 -> <=05/05/09 | BZ52: 3 | CA52: =$BQ52 -> Yeovil | CB52: =$BQ$1 -> <=05/05/09 | CC52: 1
A53: 12 | B53: 00:00:00 | C53: 2008-08-30T02:52:48 | D53: 2008-08-30 | E53: Walsall | F53: 5 | G53: 2 | H53: Southend | I53: 1 | J53: 3 | K53: 0 | L53: 2008-08-30T02:52:48 | M53: 3843 | N53: Other | V53: Home | AC53: Away | AJ53: Overall | AS53: 47 | AT53: <=20/01/09 | AU53: 2009-01-20 | AW53: Stockport | AX53: 23 | AY53: 23 | BA53: Leeds United | BC53: 19 | BD53: Bristol Rovers (H) W 3-2 | BE53: 39 Pts | BF53: Walsall | BG53: (A) | BH53: 2 | BI53: 1 | BJ53: W | BK53: Walsall (A) | BM53: 3 | BN53: =SUM(BM$34:BM53) -> 42
A54: 1 | B54: 2008-09-05T00:14:24 | C54: 00:00:00 | D54: 2008-09-05 | E54: Hereford | F54: 1 | G54: 1 | H54: Swindon | I54: 1 | J54: 1 | K54: 1 | L54: 2008-09-05T00:14:24 | M54: 4061 | N54: Other | S54: Pos | T54: Team | U54: Pld | V54: W | W54: D | X54: L | Y54: F | Z54: A | AA54: +/- | AB54: Pts | AC54: W | AD54: D | AE54: L | AF54: F | AG54: A | AH54: +/- | AI54: Pts | AJ54: W | AK54: D | AL54: L | AM54: F | AN54: A | AO54: +/- | AP54: Pts | AS54: 48 | AT54: <=24/01/09 | AU54: 2009-01-24 | AW54: Swindon | AX54: =SUM(AY26:BA26) -> 23 | AY54: =SUM(BG26:BI26) -> 23 | BA54: Leicester | BC54: 20 | BD54: Walsall (A) W 2-1 | BE54: 42 Pts | BF54: Crewe | BG54: (H) | BH54: 0 | BI54: 0 | BJ54: D | BK54: Crewe (H) | BM54: 1 | BN54: =SUM(BM$34:BM54) -> 43
A55: 1 | B55: 2008-09-06T00:14:24 | C55: 00:00:00 | D55: 2008-09-06 | E55: Brighton | F55: 1 | G55: 4 | H55: Scunthorpe | I55: 1 | J55: 0 | K55: 3 | L55: 2008-09-06T00:14:24 | M55: 5529 | N55: Other | S55: 1 | T55: Brighton | U55: =$AX$6+$BF$6 -> 46 | V55: =$AY$6 -> 6 | W55: =$AZ$6 -> 6 | X55: =$BA$6 -> 11 | Y55: =$BB$6 -> 32 | Z55: =$BC$6 -> 40 | AA55: =$BD$6 -> -8 | AB55: =$BE$6 -> 24 | AC55: =$BG$6 -> 7 | AD55: =$BH$6 -> 7 | AE55: =$BI$6 -> 9 | AF55: =$BJ$6 -> 23 | AG55: =$BK$6 -> 30 | AH55: =$BL$6 -> -7 | AI55: =$BM$6 -> 28 | AJ55: =V55+AC55 -> 13 | AK55: 13 | AL55: 20 | AM55: 55 | AN55: 70 | AO55: -15 | AP55: =AB55+AI55+T86 -> 52 | AS55: 49 | AT55: <=27/01/09 | AU55: 2009-01-27 | AW55: Tranmere | AX55: =SUM(AY27:BA27) -> 23 | AY55: =SUM(BG27:BI27) -> 23 | BA55: Leicester | BC55: 21 | BD55: Crewe (H) D 0-0 | BE55: 43 Pts | BF55: Peterbrough | BG55: (A) | BH55: 0 | BI55: 1 | BJ55: L | BK55: Peterbrough (A) | BM55: 0 | BN55: =SUM(BM$34:BM55) -> 43
A56: 2 | B56: 2008-09-06T00:28:48 | C56: 00:00:00 | D56: 2008-09-06 | E56: Carlisle | F56: 2 | G56: 1 | H56: Southend | I56: 1 | J56: =IF(F56>G56,3,IF(F56=G56,1,0)) -> 3 | K56: =IF(G56>F56,3,IF(G56=F56,1,0)) -> 0 | L56: 2008-09-06T00:28:48 | M56: 6561 | N56: Other | S56: 2 | T56: Bristol Rovers | U56: =$AX$7+$BF$7 -> 46 | V56: =$AY$7 -> 11 | W56: =$AZ$7 -> 4 | X56: =$BA$7 -> 8 | Y56: =$BB$7 -> 44 | Z56: =$BC$7 -> 29 | AA56: =$BD$7 -> 15 | AB56: =$BE$7 -> 37 | AC56: =$BG$7 -> 6 | AD56: =$BH$7 -> 8 | AE56: =$BI$7 -> 9 | AF56: =$BJ$7 -> 35 | AG56: =$BK$7 -> 32 | AH56: =$BL$7 -> 3 | AI56: =$BM$7 -> 26 | AJ56: 17 | AK56: 12 | AL56: 17 | AM56: 79 | AN56: 61 | AO56: 18 | AP56: 63 | AS56: 50 | AT56: <=31/01/09 | AU56: 2009-01-31 | AW56: Walsall | AX56: =SUM(AY28:BA28) -> 23 | AY56: =SUM(BG28:BI28) -> 23 | BA56: Leyton Orient | BC56: 22 | BD56: Peterbrough (A) L 0-1 | BE56: =BN55&" "&"Pts" -> 43 Pts | BF56: Yeovil | BG56: (H) | BH56: 1 | BI56: 1 | BJ56: D | BK56: Yeovil (H) | BM56: 1 | BN56: =SUM(BM$34:BM56) -> 44 | BQ56: Home (team) | BR56: Date | BS56: x | BT56: Att
A57: 3 | B57: 2008-09-06T00:43:12 | C57: 00:00:00 | D57: 2008-09-06 | E57: Cheltenham | F57: 1 | G57: 2 | H57: Huddersfield | I57: 1 | J57: 0 | K57: 3 | L57: 2008-09-06T00:43:12 | M57: 3587 | N57: Other | S57: 3 | T57: Carlisle | U57: =$AX$8+$BF$8 -> 46 | V57: =$AY$8 -> 8 | W57: =$AZ$8 -> 7 | X57: =$BA$8 -> 8 | Y57: =$BB$8 -> 36 | Z57: =$BC$8 -> 32 | AA57: =$BD$8 -> 4 | AB57: =$BE$8 -> 31 | AC57: =$BG$8 -> 4 | AD57: =$BH$8 -> 7 | AE57: =$BI$8 -> 12 | AF57: =$BJ$8 -> 20 | AG57: =$BK$8 -> 37 | AH57: =$BL$8 -> -17 | AI57: =$BM$8 -> 19 | AJ57: 12 | AK57: 14 | AL57: 20 | AM57: 56 | AN57: 69 | AO57: -13 | AP57: 50 | AS57: 51 | AT57: <=03/02/09 | AU57: 2009-02-03 | AW57: Yeovil | AX57: =SUM(AY29:BA29) -> 23 | AY57: =SUM(BG29:BI29) -> 23 | BA57: Leyton Orient | BC57: 23 | BD57: Yeovil (H) D 1-1 | BE57: 44 Pts | BF57: Tranmere | BG57: (H) | BH57: 1 | BI57: 0 | BJ57: W | BK57: Tranmere (H) | BM57: 3 | BN57: =SUM(BM$34:BM57) -> 47 | BQ57: =BA$34 -> Brighton | BR57: =$BQ$1 -> <=05/05/09 | BU57: =DSUM(Data,$M$5,$BQ56:$BR57) -> 140209
A58: 4 | B58: 2008-09-06T00:57:36 | C58: 00:00:00 | D58: 2008-09-06 | E58: Leeds United | F58: 5 | G58: 2 | H58: Crewe | I58: 1 | J58: 3 | K58: 0 | L58: 2008-09-06T00:57:36 | M58: 20075 | N58: Other | S58: 4 | T58: Cheltenham | U58: =$AX$9+$BF$9 -> 46 | V58: =$AY$9 -> 7 | W58: =$AZ$9 -> 6 | X58: =$BA$9 -> 10 | Y58: =$BB$9 -> 30 | Z58: =$BC$9 -> 38 | AA58: =$BD$9 -> -8 | AB58: =$BE$9 -> 27 | AC58: =$BG$9 -> 2 | AD58: =$BH$9 -> 6 | AE58: =$BI$9 -> 15 | AF58: =$BJ$9 -> 21 | AG58: =$BK$9 -> 53 | AH58: =$BL$9 -> -32 | AI58: =$BM$9 -> 12 | AJ58: 9 | AK58: 12 | AL58: 25 | AM58: 51 | AN58: 91 | AO58: -40 | AP58: 39 | AS58: 52 | AT58: <=07/02/09 | AU58: 2009-02-07 | BA58: Millwall | BC58: 24 | BD58: Tranmere (H) W 1-0 | BE58: 47 Pts | BF58: Hereford | BG58: (A) | BH58: 2 | BI58: 0 | BJ58: W | BK58: Hereford (A) | BM58: 3 | BN58: =SUM(BM$34:BM58) -> 50 | BQ58: Home (team) | BR58: Date | BS58: x | BT58: Att
A59: 5 | B59: 2008-09-06T01:12:00 | C59: 00:00:00 | D59: 2008-09-06 | E59: MK Dons | F59: 3 | G59: 0 | H59: Yeovil | I59: 1 | J59: 3 | K59: 0 | L59: 2008-09-06T01:12:00 | M59: 7959 | N59: Other | S59: 5 | T59: Colchester | U59: =$AX$10+$BF$10 -> 46 | V59: =$AY$10 -> 7 | W59: =$AZ$10 -> 4 | X59: =$BA$10 -> 12 | Y59: =$BB$10 -> 21 | Z59: =$BC$10 -> 24 | AA59: =$BD$10 -> -3 | AB59: =$BE$10 -> 25 | AC59: =$BG$10 -> 11 | AD59: =$BH$10 -> 5 | AE59: =$BI$10 -> 7 | AF59: =$BJ$10 -> 37 | AG59: =$BK$10 -> 34 | AH59: =$BL$10 -> 3 | AI59: =$BM$10 -> 38 | AJ59: 18 | AK59: 9 | AL59: 19 | AM59: 58 | AN59: 58 | AO59: 0 | AP59: 63 | AS59: 53 | AT59: <=9/02/09 | AU59: 2009-02-09 | BA59: Millwall | BC59: 25 | BD59: Hereford (A) W 2-0 | BE59: 50 Pts | BF59: Scunthorpe | BG59: (H) | BH59: 1 | BI59: 2 | BJ59: L | BK59: Scunthorpe (H) | BM59: 0 | BN59: =SUM(BM$34:BM59) -> 50 | BQ59: =BA$36 -> Bristol Rovers | BR59: =$BQ$1 -> <=05/05/09 | BU59: =DSUM(Data,$M$5,$BQ58:$BR59) -> 164923
A60: 6 | B60: 2008-09-06T01:26:24 | C60: 00:00:00 | D60: 2008-09-06 | E60: Millwall | F60: 2 | G60: 0 | H60: Hartlepool | I60: 1 | J60: 3 | K60: 0 | L60: 2008-09-06T01:26:24 | M60: 7207 | N60: Other | S60: 6 | T60: Crewe | U60: =$AX$11+$BF$11 -> 46 | V60: =$AY$11 -> 8 | W60: =$AZ$11 -> 4 | X60: =$BA$11 -> 11 | Y60: =$BB$11 -> 30 | Z60: =$BC$11 -> 38 | AA60: =$BD$11 -> -8 | AB60: =$BE$11 -> 28 | AC60: =$BG$11 -> 4 | AD60: =$BH$11 -> 6 | AE60: =$BI$11 -> 13 | AF60: =$BJ$11 -> 29 | AG60: =$BK$11 -> 44 | AH60: =$BL$11 -> -15 | AI60: =$BM$11 -> 18 | AJ60: 12 | AK60: 10 | AL60: 24 | AM60: 59 | AN60: 82 | AO60: -23 | AP60: 46 | AS60: 54 | AT60: <=10/02/09 | AU60: 2009-02-10 | BA60: MK Dons | BC60: 26 | BD60: Scunthorpe (H) L 1-2 | BE60: 50 Pts | BF60: Leeds Utd | BG60: (A) | BH60: 0 | BI60: 2 | BJ60: L | BK60: Leeds Utd (A) | BM60: 0 | BN60: =SUM(BM$34:BM60) -> 50 | BQ60: Home (team) | BR60: Date | BS60: x | BT60: Att
A61: 7 | B61: 2008-09-06T01:40:48 | C61: 00:00:00 | D61: 2008-09-06 | E61: Peterborough | F61: 5 | G61: 4 | H61: Bristol Rovers | I61: 1 | J61: 3 | K61: 0 | L61: 2008-09-06T01:40:48 | M61: 4876 | N61: Other | S61: 7 | T61: Hartlepool | U61: =$AX$12+$BF$12 -> 46 | V61: =$AY$12 -> 8 | W61: =$AZ$12 -> 7 | X61: =$BA$12 -> 8 | Y61: =$BB$12 -> 45 | Z61: =$BC$12 -> 40 | AA61: =$BD$12 -> 5 | AB61: =$BE$12 -> 31 | AC61: =$BG$12 -> 5 | AD61: =$BH$12 -> 4 | AE61: =$BI$12 -> 14 | AF61: =$BJ$12 -> 21 | AG61: =$BK$12 -> 39 | AH61: =$BL$12 -> -18 | AI61: =$BM$12 -> 19 | AJ61: 13 | AK61: 11 | AL61: 22 | AM61: 66 | AN61: 79 | AO61: -13 | AP61: 50 | AS61: 55 | AT61: <=14/02/09 | AU61: 2009-02-14 | BA61: MK Dons | BC61: 27 | BD61: Leeds Utd (A) L 0-2 | BE61: 50 Pts | BF61: Stockport | BG61: (A) | BH61: 2 | BI61: 2 | BJ61: D | BK61: Stockport (A) | BM61: 1 | BN61: =SUM(BM$34:BM61) -> 51 | BQ61: =BA$38 -> Carlisle | BR61: =$BQ$1 -> <=05/05/09 | BU61: =DSUM(Data,$M$5,$BQ60:$BR61) -> 143705
A62: 8 | B62: 2008-09-06T01:55:12 | C62: =IF(A62=9,D62+0.09,IF(A62=10,D62+0.1,IF(A62=11,D62+0.11,IF(A62=12,D62+0.12,0)))) -> 00:00:00 | D62: 2008-09-06 | E62: Tranmere | F62: 0 | G62: 1 | H62: Oldham | I62: 1 | J62: 0 | K62: 3 | L62: 2008-09-06T01:55:12 | M62: 6802 | N62: Other | S62: 8 | T62: Hereford | U62: =$AX$13+$BF$13 -> 46 | V62: =$AY$13 -> 6 | W62: =$AZ$13 -> 4 | X62: =$BA$13 -> 13 | Y62: =$BB$13 -> 23 | Z62: =$BC$13 -> 28 | AA62: =$BD$13 -> -5 | AB62: =$BE$13 -> 22 | AC62: =$BG$13 -> 3 | AD62: =$BH$13 -> 3 | AE62: =$BI$13 -> 17 | AF62: =$BJ$13 -> 19 | AG62: =$BK$13 -> 51 | AH62: =$BL$13 -> -32 | AI62: =$BM$13 -> 12 | AJ62: 9 | AK62: 7 | AL62: 30 | AM62: 42 | AN62: 79 | AO62: -37 | AP62: 34 | AS62: 56 | AT62: <=17/02/09 | AU62: 2009-02-17 | BA62: Northampton | BC62: 28 | BD62: Stockport (A) D 2-2 | BE62: 51 Pts | BF62: Swindon | BG62: (H) | BH62: 1 | BI62: 1 | BJ62: D | BK62: Swindon (H) | BM62: 1 | BN62: =SUM(BM$34:BM62) -> 52 | BQ62: Home (team) | BR62: Date | BS62: x | BT62: Att
A63: 9 | B63: 00:00:00 | C63: =IF(A63=9,D63+0.09,IF(A63=10,D63+0.1,IF(A63=11,D63+0.11,IF(A63=12,D63+0.12,0)))) -> 2008-09-06T02:09:36 | D63: 2008-09-06 | E63: Walsall | F63: 0 | G63: 2 | H63: Leyton Orient | I63: 1 | J63: =IF(F63>G63,3,IF(F63=G63,1,0)) -> 0 | K63: =IF(G63>F63,3,IF(G63=F63,1,0)) -> 3 | L63: 2008-09-06T02:09:36 | M63: 4838 | N63: Other | S63: 9 | T63: Huddersfield | U63: =$AX$14+$BF$14 -> 46 | V63: =$AY$14 -> 9 | W63: =$AZ$14 -> 8 | X63: =$BA$14 -> 6 | Y63: =$BB$14 -> 32 | Z63: =$BC$14 -> 28 | AA63: =$BD$14 -> 4 | AB63: =$BE$14 -> 35 | AC63: =$BG$14 -> 9 | AD63: =$BH$14 -> 6 | AE63: =$BI$14 -> 8 | AF63: =$BJ$14 -> 30 | AG63: =$BK$14 -> 37 | AH63: =$BL$14 -> -7 | AI63: =$BM$14 -> 33 | AJ63: 18 | AK63: 14 | AL63: 14 | AM63: 62 | AN63: 65 | AO63: -3 | AP63: 68 | AS63: 57 | AT63: <=21/02/09 | AU63: 2009-02-21 | BA63: Northampton | BC63: 29 | BD63: Swindon (H) D 1-1 | BE63: 52 Pts | BF63: Brighton | BG63: (H) | BH63: 0 | BI63: 1 | BJ63: L | BK63: Brighton (H) | BM63: 0 | BN63: =SUM(BM$34:BM63) -> 52 | BQ63: =BA$40 -> Cheltenham | BR63: =$BQ$1 -> <=05/05/09 | BU63: =DSUM(Data,$M$5,$BQ62:$BR63) -> 88644
A64: 1 | B64: =IF(A64=1,D64+0.01,IF(A64=2,D64+0.02,IF(A64=3,D64+0.03,IF(A64=4,D64+0.04,IF(A64=5,D64+0.05,IF(A64=6,D64+0.06,IF(A64=7,D64+0.07,IF(A64=8,D64+0.08,0)))))))) -> 2008-09-12T00:14:24 | C64: =IF(A64=9,D64+0.09,IF(A64=10,D64+0.1,IF(A64=11,D64+0.11,IF(A64=12,D64+0.12,0)))) -> 00:00:00 | D64: 2008-09-12 | E64: Hartlepool | F64: 4 | G64: 1 | H64: Cheltenham | I64: 1 | J64: =IF(F64>G64,3,IF(F64=G64,1,0)) -> 3 | K64: =IF(G64>F64,3,IF(G64=F64,1,0)) -> 0 | L64: =B64+C64 -> 2008-09-12T00:14:24 | M64: 3637 | N64: Other | S64: 10 | T64: Leeds United | U64: =$AX$15+$BF$15 -> 46 | V64: =$AY$15 -> 17 | W64: =$AZ$15 -> 2 | X64: =$BA$15 -> 4 | Y64: =$BB$15 -> 49 | Z64: =$BC$15 -> 20 | AA64: =$BD$15 -> 29 | AB64: =$BE$15 -> 53 | AC64: =$BG$15 -> 9 | AD64: =$BH$15 -> 4 | AE64: =$BI$15 -> 10 | AF64: =$BJ$15 -> 28 | AG64: =$BK$15 -> 29 | AH64: =$BL$15 -> -1 | AI64: =$BM$15 -> 31 | AJ64: 26 | AK64: 6 | AL64: 14 | AM64: 77 | AN64: 49 | AO64: 28 | AP64: 84 | AS64: 58 | AT64: <=24/02/09 | AU64: 2009-02-24 | BA64: Oldham | BC64: 30 | BD64: Brighton (H) L 0-1 | BE64: 52 Pts | BF64: Cheltenham | BG64: (A) | BH64: 3 | BI64: 1 | BJ64: W | BK64: Cheltenham (A) | BM64: 3 | BN64: =SUM(BM$34:BM64) -> 55 | BQ64: Home (team) | BR64: Date | BS64: x | BT64: Att
A65: 1 | B65: 2008-09-13T00:14:24 | C65: 00:00:00 | D65: 2008-09-13 | E65: Bristol Rovers | F65: 1 | G65: 3 | H65: Walsall | I65: 1 | J65: 0 | K65: 3 | L65: 2008-09-13T00:14:24 | M65: 6609 | N65: Other | S65: 11 | T65: Leicester | U65: =$AX$16+$BF$16 -> 46 | V65: =$AY$16 -> 13 | W65: =$AZ$16 -> 9 | X65: =$BA$16 -> 1 | Y65: =$BB$16 -> 41 | Z65: =$BC$16 -> 16 | AA65: =$BD$16 -> 25 | AB65: =$BE$16 -> 48 | AC65: =$BG$16 -> 14 | AD65: =$BH$16 -> 6 | AE65: =$BI$16 -> 3 | AF65: =$BJ$16 -> 43 | AG65: =$BK$16 -> 23 | AH65: =$BL$16 -> 20 | AI65: =$BM$16 -> 48 | AJ65: 27 | AK65: 15 | AL65: 4 | AM65: 84 | AN65: 39 | AO65: 45 | AP65: =AB65+AI65 -> 96 | AS65: 59 | AT65: <=28/02/09 | AU65: 2009-02-28 | BA65: Oldham | BC65: 31 | BD65: Cheltenham (A) W 3-1 | BE65: 55 Pts | BF65: Oldham | BG65: (H) | BH65: 2 | BI65: 3 | BJ65: L | BK65: Oldham (H) | BM65: 0 | BN65: =SUM(BM$34:BM65) -> 55 | BQ65: =BA$42 -> Colchester | BR65: =$BQ$1 -> <=05/05/09 | BU65: =DSUM(Data,$M$5,$BQ64:$BR65) -> 119100
A66: 2 | B66: 2008-09-13T00:28:48 | C66: 00:00:00 | D66: 2008-09-13 | E66: Crewe | F66: 2 | G66: 0 | H66: Colchester | I66: 1 | J66: 3 | K66: 0 | L66: 2008-09-13T00:28:48 | M66: 3510 | N66: Other | S66: 12 | T66: Leyton Orient | U66: =$AX$17+$BF$17 -> 46 | V66: =$AY$17 -> 6 | W66: =$AZ$17 -> 6 | X66: =$BA$17 -> 11 | Y66: =$BB$17 -> 24 | Z66: =$BC$17 -> 33 | AA66: =$BD$17 -> -9 | AB66: =$BE$17 -> 24 | AC66: =$BG$17 -> 9 | AD66: =$BH$17 -> 5 | AE66: =$BI$17 -> 9 | AF66: =$BJ$17 -> 21 | AG66: =$BK$17 -> 24 | AH66: =$BL$17 -> -3 | AI66: =$BM$17 -> 32 | AJ66: 15 | AK66: 11 | AL66: 20 | AM66: 45 | AN66: 57 | AO66: -12 | AP66: 56 | AS66: 60 | AT66: <=2/03/09 | AU66: 2009-03-02 | BA66: Peterborough | BC66: 32 | BD66: Oldham (H) L 2-3 | BE66: 55 Pts | BF66: Southend | BG66: (A) | BH66: 1 | BI66: 0 | BJ66: W | BK66: Southend (A) | BM66: 3 | BN66: =SUM(BM$34:BM66) -> 58 | BQ66: Home (team) | BR66: Date | BS66: x | BT66: Att
A67: 3 | B67: 2008-09-13T00:43:12 | C67: 00:00:00 | D67: 2008-09-13 | E67: Huddersfield | F67: 1 | G67: 2 | H67: Tranmere | I67: 1 | J67: 0 | K67: 3 | L67: 2008-09-13T00:43:12 | M67: 13352 | N67: Other | S67: 13 | T67: Millwall | U67: =$AX$18+$BF$18 -> 46 | V67: =$AY$18 -> 13 | W67: =$AZ$18 -> 4 | X67: =$BA$18 -> 6 | Y67: =$BB$18 -> 30 | Z67: =$BC$18 -> 21 | AA67: =$BD$18 -> 9 | AB67: =$BE$18 -> 43 | AC67: =$BG$18 -> 12 | AD67: =$BH$18 -> 3 | AE67: =$BI$18 -> 8 | AF67: =$BJ$18 -> 33 | AG67: =$BK$18 -> 32 | AH67: =$BL$18 -> 1 | AI67: =$BM$18 -> 39 | AJ67: 25 | AK67: 7 | AL67: 14 | AM67: 63 | AN67: 53 | AO67: 10 | AP67: =AB67+AI67 -> 82 | AS67: 61 | AT67: <=3/03/09 | AU67: 2009-03-03 | BA67: Peterborough | BC67: 33 | BD67: Southend (A) W 1-0 | BE67: 58 Pts | BF67: Huddersfield | BG67: (A) | BH67: 2 | BI67: 1 | BJ67: W | BK67: Huddersfield (A) | BM67: 3 | BN67: =SUM(BM$34:BM67) -> 61 | BQ67: =BA$44 -> Crewe | BR67: =$BQ$1 -> <=05/05/09 | BU67: =DSUM(Data,$M$5,$BQ66:$BR67) -> 104349
A68: 4 | B68: 2008-09-13T00:57:36 | C68: 00:00:00 | D68: 2008-09-13 | E68: Leicester | F68: 0 | G68: 1 | H68: Millwall | I68: 1 | J68: 0 | K68: 3 | L68: 2008-09-13T00:57:36 | M68: 19591 | N68: Other | S68: 14 | T68: MK Dons | U68: =$AX$19+$BF$19 -> 46 | V68: =$AY$19 -> 12 | W68: =$AZ$19 -> 4 | X68: =$BA$19 -> 7 | Y68: =$BB$19 -> 42 | Z68: =$BC$19 -> 25 | AA68: =$BD$19 -> 17 | AB68: =$BE$19 -> 40 | AC68: =$BG$19 -> 14 | AD68: =$BH$19 -> 5 | AE68: =$BI$19 -> 4 | AF68: =$BJ$19 -> 41 | AG68: =$BK$19 -> 22 | AH68: =$BL$19 -> 19 | AI68: =$BM$19 -> 47 | AJ68: 26 | AK68: 9 | AL68: 11 | AM68: 83 | AN68: 47 | AO68: 36 | AP68: 87 | AS68: 62 | AT68: <=7/03/09 | AU68: 2009-03-07 | BA68: Scunthorpe | BC68: 34 | BD68: Huddersfield (A) W 2-1 | BE68: 61 Pts | BF68: Northampton | BG68: (H) | BH68: 1 | BI68: 0 | BJ68: =IF(BH68>BI68,"W",IF(BH68<BI68,"L","D")) -> W | BK68: Northampton (H) | BM68: 3 | BN68: =SUM(BM$34:BM68) -> 64 | BQ68: Home (team) | BR68: Date | BS68: x | BT68: Att
A69: 5 | B69: 2008-09-13T01:12:00 | C69: 00:00:00 | D69: 2008-09-13 | E69: Leyton Orient | F69: 0 | G69: 3 | H69: Stockport | I69: 1 | J69: 0 | K69: 3 | L69: 2008-09-13T01:12:00 | M69: 4473 | N69: Other | S69: 15 | T69: Northampton | U69: =$AX$20+$BF$20 -> 46 | V69: =$AY$20 -> 8 | W69: =$AZ$20 -> 8 | X69: =$BA$20 -> 7 | Y69: =$BB$20 -> 38 | Z69: =$BC$20 -> 29 | AA69: =$BD$20 -> 9 | AB69: =$BE$20 -> 32 | AC69: =$BG$20 -> 4 | AD69: =$BH$20 -> 5 | AE69: =$BI$20 -> 14 | AF69: =$BJ$20 -> 23 | AG69: =$BK$20 -> 36 | AH69: =$BL$20 -> -13 | AI69: =$BM$20 -> 17 | AJ69: 12 | AK69: 13 | AL69: 21 | AM69: 61 | AN69: 65 | AO69: -4 | AP69: 49 | AS69: 63 | AT69: <=10/03/09 | AU69: 2009-03-10 | BA69: Scunthorpe | BC69: 35 | BD69: Northampton (H) W 1-0 | BE69: 64 Pts | BF69: Leicester City | BG69: (H) | BH69: 0 | BI69: 1 | BJ69: L | BK69: Leicester City (H) | BM69: 0 | BN69: =SUM(BM$34:BM69) -> 64 | BQ69: =BA$46 -> Hartlepool | BR69: =$BQ$1 -> <=05/05/09 | BU69: =DSUM(Data,$M$5,$BQ68:$BR69) -> 88202
A70: 6 | B70: 2008-09-13T01:26:24 | C70: 00:00:00 | D70: 2008-09-13 | E70: Northampton | F70: 1 | G70: 1 | H70: Peterborough | I70: 1 | J70: 1 | K70: 1 | L70: 2008-09-13T01:26:24 | M70: 6520 | N70: Northampton | O70: Peterborough | S70: 16 | T70: Oldham | U70: =$AX$21+$BF$21 -> 46 | V70: =$AY$21 -> 9 | W70: =$AZ$21 -> 9 | X70: =$BA$21 -> 5 | Y70: =$BB$21 -> 35 | Z70: =$BC$21 -> 24 | AA70: =$BD$21 -> 11 | AB70: =$BE$21 -> 36 | AC70: =$BG$21 -> 7 | AD70: =$BH$21 -> 8 | AE70: =$BI$21 -> 8 | AF70: =$BJ$21 -> 31 | AG70: =$BK$21 -> 41 | AH70: =$BL$21 -> -10 | AI70: =$BM$21 -> 29 | AJ70: 16 | AK70: 17 | AL70: 13 | AM70: 66 | AN70: 65 | AO70: 1 | AP70: 65 | AS70: 64 | AT70: <=11/03/09 | AU70: 2009-03-11 | BA70: Southend | BC70: 36 | BD70: Leicester City (H) L 0-1 | BE70: 64 Pts | BF70: MK Dons | BG70: (A) | BH70: 1 | BI70: 0 | BJ70: W | BK70: MK Dons (A) | BM70: 3 | BN70: =SUM(BM$34:BM70) -> 67 | BQ70: Home (team) | BR70: Date | BS70: x | BT70: Att
A71: =IF(D71=D70,A70+1,1) -> 7 | B71: 2008-09-13T01:40:48 | C71: 00:00:00 | D71: 2008-09-13 | E71: Oldham | F71: 2 | G71: 0 | H71: MK Dons | I71: 1 | J71: 3 | K71: 0 | L71: 2008-09-13T01:40:48 | M71: 5530 | N71: =IF(E71=$N$1,$N$1,IF(H71=$N$1,$N$1,"Other")) -> Other | O71: =IF(N71=$N$1,IF(E71=$N$1,H71,E71),"") ->  | S71: 17 | T71: Peterborough | U71: =$AX$22+$BF$22 -> 46 | V71: =$AY$22 -> 14 | W71: =$AZ$22 -> 6 | X71: =$BA$22 -> 3 | Y71: =$BB$22 -> 41 | Z71: =$BC$22 -> 22 | AA71: =$BD$22 -> 19 | AB71: =$BE$22 -> 48 | AC71: =$BG$22 -> 12 | AD71: =$BH$22 -> 5 | AE71: =$BI$22 -> 6 | AF71: =$BJ$22 -> 37 | AG71: =$BK$22 -> 32 | AH71: =$BL$22 -> 5 | AI71: =$BM$22 -> 41 | AJ71: 26 | AK71: 11 | AL71: 9 | AM71: 78 | AN71: 54 | AO71: 24 | AP71: 89 | AS71: 65 | AT71: <=14/03/09 | AU71: 2009-03-14 | BA71: Southend | BC71: 37 | BD71: MK Dons (A) W 1-0 | BE71: 67 Pts | BF71: Hartlepool | BG71: (A) | BH71: 3 | BI71: 2 | BJ71: W | BK71: Hartlepool (A) | BM71: 3 | BN71: =SUM(BM$34:BM71) -> 70 | BQ71: =BA$48 -> Hereford | BR71: =$BQ$1 -> <=05/05/09 | BU71: =DSUM(Data,$M$5,$BQ70:$BR71) -> 75205
A72: 8 | B72: 2008-09-13T01:55:12 | C72: 00:00:00 | D72: 2008-09-13 | E72: Scunthorpe | F72: 2 | G72: 1 | H72: Carlisle | I72: 1 | J72: 3 | K72: 0 | L72: 2008-09-13T01:55:12 | M72: 5188 | N72: Other | S72: 18 | T72: Scunthorpe | U72: =$AX$23+$BF$23 -> 46 | V72: =$AY$23 -> 13 | W72: =$AZ$23 -> 5 | X72: =$BA$23 -> 5 | Y72: =$BB$23 -> 44 | Z72: =$BC$23 -> 24 | AA72: =$BD$23 -> 20 | AB72: =$BE$23 -> 44 | AC72: =$BG$23 -> 9 | AD72: =$BH$23 -> 5 | AE72: =$BI$23 -> 9 | AF72: =$BJ$23 -> 38 | AG72: =$BK$23 -> 39 | AH72: =$BL$23 -> -1 | AI72: =$BM$23 -> 32 | AJ72: 22 | AK72: 10 | AL72: 14 | AM72: 82 | AN72: 63 | AO72: 19 | AP72: 76 | AS72: 66 | AT72: <=17/03/09 | AU72: 2009-03-17 | BA72: Stockport | BC72: 38 | BD72: Hartlepool (A) W 3-2 | BE72: 70 Pts | BF72: Crewe | BG72: (A) | BH72: 1 | BI72: 0 | BJ72: W | BK72: Crewe (A) | BM72: 3 | BN72: =SUM(BM$34:BM72) -> 73 | BQ72: Home (team) | BR72: Date | BS72: x | BT72: Att
A73: 9 | B73: 00:00:00 | C73: 2008-09-13T02:09:36 | D73: 2008-09-13 | E73: Southend | F73: 1 | G73: 0 | H73: Hereford | I73: 1 | J73: 3 | K73: 0 | L73: 2008-09-13T02:09:36 | M73: 6393 | N73: Other | S73: 19 | T73: Southend | U73: =$AX$24+$BF$24 -> 46 | V73: =$AY$24 -> 13 | W73: =$AZ$24 -> 2 | X73: =$BA$24 -> 8 | Y73: =$BB$24 -> 29 | Z73: =$BC$24 -> 20 | AA73: =$BD$24 -> 9 | AB73: =$BE$24 -> 41 | AC73: =$BG$24 -> 8 | AD73: =$BH$24 -> 6 | AE73: =$BI$24 -> 9 | AF73: =$BJ$24 -> 29 | AG73: =$BK$24 -> 41 | AH73: =$BL$24 -> -12 | AI73: =$BM$24 -> 30 | AJ73: 21 | AK73: 8 | AL73: 17 | AM73: 58 | AN73: 61 | AO73: -3 | AP73: 71 | AS73: 67 | AT73: <=21/03/09 | AU73: 2009-03-21 | BA73: Stockport | BC73: 39 | BD73: Crewe (A) W 1-0 | BE73: 73 Pts | BF73: Colchester | BG73: (H) | BH73: 0 | BI73: 1 | BJ73: L | BK73: Colchester (H) | BM73: 0 | BN73: =SUM(BM$34:BM73) -> 73 | BQ73: =BA$50 -> Huddersfield | BR73: =$BQ$1 -> <=05/05/09 | BU73: =DSUM(Data,$M$5,$BQ72:$BR73) -> 306535
A74: 10 | B74: 00:00:00 | C74: 2008-09-13T02:24:00 | D74: 2008-09-13 | E74: Swindon | F74: 1 | G74: 3 | H74: Leeds United | I74: 1 | J74: 0 | K74: 3 | L74: 2008-09-13T02:24:00 | M74: 13001 | N74: Other | S74: 20 | T74: Stockport | U74: =$AX$25+$BF$25 -> 46 | V74: =$AY$25 -> 9 | W74: =$AZ$25 -> 7 | X74: =$BA$25 -> 7 | Y74: =$BB$25 -> 34 | Z74: =$BC$25 -> 28 | AA74: =$BD$25 -> 6 | AB74: =$BE$25 -> 34 | AC74: =$BG$25 -> 7 | AD74: =$BH$25 -> 5 | AE74: =$BI$25 -> 11 | AF74: =$BJ$25 -> 25 | AG74: =$BK$25 -> 29 | AH74: =$BL$25 -> -4 | AI74: =$BM$25 -> 26 | AJ74: 16 | AK74: 12 | AL74: 18 | AM74: 59 | AN74: 57 | AO74: 2 | AP74: =AB74+AI74+AW95 -> 50 | AS74: 68 | AT74: <=24/03/09 | AU74: 2009-03-24 | BA74: Swindon | BC74: 40 | BD74: Colchester (H) L 0-1 | BE74: 73 Pts | BF74: Walsall | BG74: (H) | BH74: 3 | BI74: 1 | BJ74: W | BK74: Walsall (H) | BM74: 3 | BN74: =SUM(BM$34:BM74) -> 76 | BQ74: Home (team) | BR74: Date | BS74: x | BT74: Att
A75: 11 | B75: 00:00:00 | C75: 2008-09-13T02:38:24 | D75: 2008-09-13 | E75: Yeovil | F75: 1 | G75: 1 | H75: Brighton | I75: 1 | J75: 1 | K75: 1 | L75: 2008-09-13T02:38:24 | M75: 4451 | N75: Other | S75: 21 | T75: Swindon | U75: =$AX$26+$BF$26 -> 46 | V75: =$AY$26 -> 8 | W75: =$AZ$26 -> 7 | X75: =$BA$26 -> 8 | Y75: =$BB$26 -> 37 | Z75: =$BC$26 -> 34 | AA75: =$BD$26 -> 3 | AB75: =$BE$26 -> 31 | AC75: =$BG$26 -> 4 | AD75: =$BH$26 -> 10 | AE75: =$BI$26 -> 9 | AF75: =$BJ$26 -> 31 | AG75: =$BK$26 -> 37 | AH75: =$BL$26 -> -6 | AI75: =$BM$26 -> 22 | AJ75: 12 | AK75: 17 | AL75: 17 | AM75: 68 | AN75: 71 | AO75: -3 | AP75: 53 | AS75: 69 | AT75: <=27/03/09 | AU75: 2009-03-27 | BA75: Swindon | BC75: 41 | BD75: Walsall (H) W 3-1 | BE75: 76 Pts | BF75: Yeovil | BG75: (A) | BH75: 0 | BI75: 2 | BJ75: L | BK75: Yeovil (A) | BM75: 0 | BN75: =SUM(BM$34:BM75) -> 76 | BQ75: =BA$52 -> Leeds United | BR75: =$BQ$1 -> <=05/05/09 | BU75: =DSUM(Data,$M$5,$BQ74:$BR75) -> 547696
A76: 1 | B76: =IF(A76=1,D76+0.01,IF(A76=2,D76+0.02,IF(A76=3,D76+0.03,IF(A76=4,D76+0.04,IF(A76=5,D76+0.05,IF(A76=6,D76+0.06,IF(A76=7,D76+0.07,IF(A76=8,D76+0.08,0)))))))) -> 2008-09-16T00:14:24 | C76: =IF(A76=9,D76+0.09,IF(A76=10,D76+0.1,IF(A76=11,D76+0.11,IF(A76=12,D76+0.12,0)))) -> 00:00:00 | D76: 2008-09-16 | E76: Cheltenham | F76: 2 | G76: 1 | H76: Bristol Rovers | I76: 1 | J76: =IF(F76>G76,3,IF(F76=G76,1,0)) -> 3 | K76: =IF(G76>F76,3,IF(G76=F76,1,0)) -> 0 | L76: =B76+C76 -> 2008-09-16T00:14:24 | M76: 4546 | N76: Other | S76: 22 | T76: Tranmere | U76: =$AX$27+$BF$27 -> 46 | V76: =$AY$27 -> 15 | W76: =$AZ$27 -> 5 | X76: =$BA$27 -> 3 | Y76: =$BB$27 -> 41 | Z76: =$BC$27 -> 20 | AA76: =$BD$27 -> 21 | AB76: =$BE$27 -> 50 | AC76: =$BG$27 -> 6 | AD76: =$BH$27 -> 6 | AE76: =$BI$27 -> 11 | AF76: =$BJ$27 -> 21 | AG76: =$BK$27 -> 29 | AH76: =$BL$27 -> -8 | AI76: =$BM$27 -> 24 | AJ76: 21 | AK76: 11 | AL76: 14 | AM76: 62 | AN76: 49 | AO76: 13 | AP76: 74 | AS76: 70 | AT76: <=28/03/09 | AU76: 2009-03-28 | BA76: Tranmere | BC76: 42 | BD76: Yeovil (A) L 0-2 | BE76: 76 Pts | BF76: Peterbrough | BG76: (H) | BH76: 2 | BI76: 0 | BJ76: W | BK76: Peterbrough (H) | BM76: 3 | BN76: =SUM(BM$34:BM76) -> 79 | BQ76: Home (team) | BR76: Date | BS76: x | BT76: Att
A77: 2 | B77: =IF(A77=1,D77+0.01,IF(A77=2,D77+0.02,IF(A77=3,D77+0.03,IF(A77=4,D77+0.04,IF(A77=5,D77+0.05,IF(A77=6,D77+0.06,IF(A77=7,D77+0.07,IF(A77=8,D77+0.08,0)))))))) -> 2008-09-16T00:28:48 | C77: =IF(A77=9,D77+0.09,IF(A77=10,D77+0.1,IF(A77=11,D77+0.11,IF(A77=12,D77+0.12,0)))) -> 00:00:00 | D77: 2008-09-16 | E77: Stockport | F77: 1 | G77: 1 | H77: Northampton | I77: 1 | J77: =IF(F77>G77,3,IF(F77=G77,1,0)) -> 1 | K77: =IF(G77>F77,3,IF(G77=F77,1,0)) -> 1 | L77: =B77+C77 -> 2008-09-16T00:28:48 | M77: 4974 | N77: Northampton | O77: Stockport | S77: 23 | T77: Walsall | U77: =$AX$28+$BF$28 -> 46 | V77: =$AY$28 -> 10 | W77: =$AZ$28 -> 3 | X77: =$BA$28 -> 10 | Y77: =$BB$28 -> 34 | Z77: =$BC$28 -> 36 | AA77: =$BD$28 -> -2 | AB77: =$BE$28 -> 33 | AC77: =$BG$28 -> 7 | AD77: =$BH$28 -> 7 | AE77: =$BI$28 -> 9 | AF77: =$BJ$28 -> 27 | AG77: =$BK$28 -> 30 | AH77: =$BL$28 -> -3 | AI77: =$BM$28 -> 28 | AJ77: 17 | AK77: 10 | AL77: 19 | AM77: 61 | AN77: 66 | AO77: -5 | AP77: 61 | AS77: 71 | AT77: <=31/03/09 | AU77: 2009-03-31 | BA77: Tranmere | BC77: 43 | BD77: Peterbrough (H) W 2-0 | BE77: 79 Pts | BF77: Bristol Rovers | BG77: (A) | BH77: 2 | BI77: 4 | BJ77: L | BK77: Bristol Rovers (A) | BM77: 0 | BN77: =SUM(BM$34:BM77) -> 79 | BQ77: =BA$54 -> Leicester | BR77: =$BQ$1 -> <=05/05/09 | BU77: =DSUM(Data,$M$5,$BQ76:$BR77) -> 465825
A78: 1 | B78: =IF(A78=1,D78+0.01,IF(A78=2,D78+0.02,IF(A78=3,D78+0.03,IF(A78=4,D78+0.04,IF(A78=5,D78+0.05,IF(A78=6,D78+0.06,IF(A78=7,D78+0.07,IF(A78=8,D78+0.08,0)))))))) -> 2008-09-20T00:14:24 | C78: =IF(A78=9,D78+0.09,IF(A78=10,D78+0.1,IF(A78=11,D78+0.11,IF(A78=12,D78+0.12,0)))) -> 00:00:00 | D78: 2008-09-20 | E78: Brighton | F78: 0 | G78: 1 | H78: Walsall | I78: 1 | J78: =IF(F78>G78,3,IF(F78=G78,1,0)) -> 0 | K78: =IF(G78>F78,3,IF(G78=F78,1,0)) -> 3 | L78: =B78+C78 -> 2008-09-20T00:14:24 | M78: 5678 | N78: Other | S78: 24 | T78: Yeovil | U78: =$AX$29+$BF$29 -> 46 | V78: =$AY$29 -> 6 | W78: =$AZ$29 -> 10 | X78: =$BA$29 -> 7 | Y78: =$BB$29 -> 26 | Z78: =$BC$29 -> 29 | AA78: =$BD$29 -> -3 | AB78: =$BE$29 -> 28 | AC78: =$BG$29 -> 6 | AD78: =$BH$29 -> 5 | AE78: =$BI$29 -> 12 | AF78: =$BJ$29 -> 15 | AG78: =$BK$29 -> 37 | AH78: =$BL$29 -> -22 | AI78: =$BM$29 -> 23 | AJ78: 12 | AK78: 15 | AL78: 19 | AM78: 41 | AN78: 66 | AO78: -25 | AP78: 51 | AS78: 72 | AT78: <=04/04/09 | AU78: 2009-04-04 | BA78: Walsall | BC78: 44 | BD78: Bristol Rovers (A) L 2-4 | BE78: 79 Pts | BF78: Leyton Orient | BG78: (H) | BH78: 2 | BI78: 1 | BJ78: W | BK78: Leyton Orient (H) | BM78: 3 | BN78: =SUM(BM$34:BM78) -> 82 | BQ78: Home (team) | BR78: Date | BS78: x | BT78: Att
A79: 2 | B79: 2008-09-20T00:28:48 | C79: 00:00:00 | D79: 2008-09-20 | E79: Carlisle | F79: 0 | G79: 2 | H79: Leeds United | I79: 1 | J79: 0 | K79: 3 | L79: 2008-09-20T00:28:48 | M79: 12148 | N79: Other | AS79: 73 | AT79: <=05/04/09 | AU79: 2009-04-05 | BA79: Walsall | BC79: 45 | BD79: Leyton Orient (H) W 2-1 | BE79: 82 Pts | BF79: Carlisle | BG79: (A) | BH79: 0 | BI79: 2 | BJ79: L | BK79: Carlisle (A) | BM79: 0 | BN79: =SUM(BM$34:BM79) -> 82 | BQ79: =BA$56 -> Leyton Orient | BR79: =$BQ$1 -> <=05/05/09 | BU79: =DSUM(Data,$M$5,$BQ78:$BR79) -> 107912
A80: 3 | B80: 2008-09-20T00:43:12 | C80: 00:00:00 | D80: 2008-09-20 | E80: Colchester | F80: 0 | G80: 3 | H80: MK Dons | I80: 1 | J80: 0 | K80: 3 | L80: 2008-09-20T00:43:12 | M80: 4888 | N80: Other | AS80: 74 | AT80: <=07/04/09 | AU80: 2009-04-07 | BA80: Yeovil | BC80: 46 | BD80: Carlisle (A) L 0-2 | BE80: =BN79&" "&"Pts" -> 82 Pts | BK80: End of Season | BQ80: Home (team) | BR80: Date | BS80: x | BT80: Att
A81: 4 | B81: 2008-09-20T00:57:36 | C81: 00:00:00 | D81: 2008-09-20 | E81: Crewe | F81: 3 | G81: 4 | H81: Southend | I81: 1 | J81: 0 | K81: 3 | L81: 2008-09-20T00:57:36 | M81: 3574 | N81: Other | U81: =SUM(U55:U78) -> 1104 | AS81: 75 | AT81: <=10/04/09 | AU81: 2009-04-10 | BA81: Yeovil | BQ81: =BA$58 -> Millwall | BR81: =$BQ$1 -> <=05/05/09 | BU81: =DSUM(Data,$M$5,$BQ80:$BR81) -> 205532
A82: 5 | B82: 2008-09-20T01:12:00 | C82: 00:00:00 | D82: 2008-09-20 | E82: Hartlepool | F82: 3 | G82: 3 | H82: Oldham | I82: 1 | J82: 1 | K82: 1 | L82: 2008-09-20T01:12:00 | M82: 4507 | N82: Other | AS82: 76 | AT82: <=11/04/09 | AU82: 2009-04-11 | BQ82: Home (team) | BR82: Date | BS82: x | BT82: Att
A83: 6 | B83: 2008-09-20T01:26:24 | C83: 00:00:00 | D83: 2008-09-20 | E83: Hereford | F83: 1 | G83: 2 | H83: Scunthorpe | I83: 1 | J83: 0 | K83: 3 | L83: 2008-09-20T01:26:24 | M83: 3004 | N83: Other | X83: 2007-11-23 | AS83: 77 | AT83: <=13/04/09 | AU83: 2009-04-13 | BQ83: =BA$60 -> MK Dons | BR83: =$BQ$1 -> <=05/05/09 | BU83: =DSUM(Data,$M$5,$BQ82:$BR83) -> 242662
A84: 7 | B84: 2008-09-20T01:40:48 | C84: 00:00:00 | D84: 2008-09-20 | E84: Huddersfield | F84: 3 | G84: 2 | H84: Northampton | I84: 1 | J84: 3 | K84: 0 | L84: 2008-09-20T01:40:48 | M84: 12414 | N84: Northampton | O84: Huddersfield | AS84: 78 | AT84: <=18/04/09 | AU84: 2009-04-18 | BQ84: Home (team) | BR84: Date | BS84: x | BT84: Att
A85: 8 | B85: 2008-09-20T01:55:12 | C85: 00:00:00 | D85: 2008-09-20 | E85: Leyton Orient | F85: 1 | G85: 3 | H85: Leicester | I85: 1 | J85: 0 | K85: 3 | L85: 2008-09-20T01:55:12 | M85: 6448 | N85: Other | T85: 1 | AS85: 79 | AT85: <=21/04/09 | AU85: 2009-04-21 | BQ85: =BA$62 -> Northampton | BR85: =$BQ$1 -> <=05/05/09 | BU85: =DSUM(Data,$M$5,$BQ84:$BR85) -> 117120
A86: 9 | B86: 00:00:00 | C86: 2008-09-20T02:09:36 | D86: 2008-09-20 | E86: Millwall | F86: 2 | G86: 0 | H86: Cheltenham | I86: 1 | J86: 3 | K86: 0 | L86: 2008-09-20T02:09:36 | M86: 8009 | N86: Other | X86: 2008-02-08 | AS86: 80 | AT86: <=24/04/09 | AU86: 2009-04-24 | BQ86: Home (team) | BR86: Date | BS86: x | BT86: Att
A87: 10 | B87: 00:00:00 | C87: 2008-09-20T02:24:00 | D87: 2008-09-20 | E87: Peterborough | F87: 2 | G87: 2 | H87: Tranmere | I87: 1 | J87: 1 | K87: 1 | L87: 2008-09-20T02:24:00 | M87: 5735 | N87: Other | AS87: 81 | AT87: <=25/04/09 | AU87: 2009-04-25 | BQ87: =BA$64 -> Oldham | BR87: =$BQ$1 -> <=05/05/09 | BU87: =DSUM(Data,$M$5,$BQ86:$BR87) -> 129231
A88: 11 | B88: 00:00:00 | C88: 2008-09-20T02:38:24 | D88: 2008-09-20 | E88: Stockport | F88: 1 | G88: 1 | H88: Swindon | I88: 1 | J88: 1 | K88: 1 | L88: 2008-09-20T02:38:24 | M88: 5536 | N88: Other | AS88: 82 | AT88: <=28/04/09 | AU88: 2009-04-28 | BQ88: Home (team) | BR88: Date | BS88: x | BT88: Att
A89: 12 | B89: 00:00:00 | C89: 2008-09-20T02:52:48 | D89: 2008-09-20 | E89: Yeovil | F89: 2 | G89: 2 | H89: Bristol Rovers | I89: 1 | J89: 1 | K89: 1 | L89: 2008-09-20T02:52:48 | M89: 5748 | N89: Other | AM89: Progress Table | AN89: Off | AS89: 83 | AT89: <=30/04/09 | AU89: 2009-04-30 | BQ89: =BA$66 -> Peterborough | BR89: =$BQ$1 -> <=05/05/09 | BU89: =DSUM(Data,$M$5,$BQ88:$BR89) -> 174773
A90: 1 | B90: =IF(A90=1,D90+0.01,IF(A90=2,D90+0.02,IF(A90=3,D90+0.03,IF(A90=4,D90+0.04,IF(A90=5,D90+0.05,IF(A90=6,D90+0.06,IF(A90=7,D90+0.07,IF(A90=8,D90+0.08,0)))))))) -> 2008-09-26T00:14:24 | C90: =IF(A90=9,D90+0.09,IF(A90=10,D90+0.1,IF(A90=11,D90+0.11,IF(A90=12,D90+0.12,0)))) -> 00:00:00 | D90: 2008-09-26 | E90: Southend | F90: 3 | G90: 0 | H90: Leyton Orient | I90: 1 | J90: =IF(F90>G90,3,IF(F90=G90,1,0)) -> 3 | K90: =IF(G90>F90,3,IF(G90=F90,1,0)) -> 0 | L90: =B90+C90 -> 2008-09-26T00:14:24 | M90: 3499 | N90: Other | T90: Average Attendance | AS90: 84 | AT90: <=05/05/09 | AU90: 2009-05-02 | BQ90: Home (team) | BR90: Date | BS90: x | BT90: Att
A91: 2 | B91: 2008-09-26T00:28:48 | C91: 00:00:00 | D91: 2008-09-26 | E91: Tranmere | F91: 3 | G91: 4 | H91: Colchester | I91: 1 | J91: =IF(F91>G91,3,IF(F91=G91,1,0)) -> 0 | K91: =IF(G91>F91,3,IF(G91=F91,1,0)) -> 3 | L91: 2008-09-26T00:28:48 | M91: 5713 | N91: Other | U91: Played | V91: Average | Y91: Rank | BQ91: =BA$68 -> Scunthorpe | BR91: =$BQ$1 -> <=05/05/09 | BU91: =DSUM(Data,$M$5,$BQ90:$BR91) -> 115473
A92: 1 | B92: 2008-09-27T00:14:24 | C92: 00:00:00 | D92: 2008-09-27 | E92: Bristol Rovers | F92: 0 | G92: 0 | H92: Crewe | I92: 1 | J92: =IF(F92>G92,3,IF(F92=G92,1,0)) -> 1 | K92: =IF(G92>F92,3,IF(G92=F92,1,0)) -> 1 | L92: 2008-09-27T00:14:24 | M92: 5870 | N92: Other | P92: =BU$57 -> 140209 | T92: =T55 -> Brighton | U92: =V55+W55+X55 -> 23 | V92: =P92/U92 -> 6096.043478 | Y92: =RANK(V92,$V$92:$W$115,0) -> 12 | AW92: =AO2 -> 2009-05-02 | BQ92: Home (team) | BR92: Date | BS92: x | BT92: Att
A93: 2 | B93: 2008-09-27T00:28:48 | C93: 00:00:00 | D93: 2008-09-27 | E93: Cheltenham | F93: 2 | G93: 2 | H93: Stockport | I93: 1 | J93: 1 | K93: 1 | L93: 2008-09-27T00:28:48 | M93: 3796 | N93: Other | P93: =BU$59 -> 164923 | T93: =T56 -> Bristol Rovers | U93: =V56+W56+X56 -> 23 | V93: 7170.565217 | Y93: =RANK(V93,$V$92:$W$115,0) -> 9 | AW93: 2009-04-30 | BQ93: =BA$70 -> Southend | BR93: =$BQ$1 -> <=05/05/09 | BU93: =DSUM(Data,$M$5,$BQ92:$BR93) -> 174788
A94: 3 | B94: 2008-09-27T00:43:12 | C94: 00:00:00 | D94: 2008-09-27 | E94: Leeds United | F94: 1 | G94: 0 | H94: Hereford | I94: 1 | J94: 3 | K94: 0 | L94: 2008-09-27T00:43:12 | M94: 25676 | N94: Other | P94: =BU$61 -> 143705 | T94: =T57 -> Carlisle | U94: 23 | V94: 6248.043478 | Y94: 10 | AW94: Stockport Minus 10 Points | BQ94: Home (team) | BR94: Date | BS94: x | BT94: Att
A95: 4 | B95: 2008-09-27T00:57:36 | C95: 00:00:00 | D95: 2008-09-27 | E95: Leicester | F95: 1 | G95: 0 | H95: Hartlepool | I95: 1 | J95: 3 | K95: 0 | L95: 2008-09-27T00:57:36 | M95: 18578 | N95: Other | P95: =BU$63 -> 88644 | T95: Cheltenham | U95: 23 | V95: 3854.086957 | Y95: 22 | AW95: =IF(AW93<=AW92,-10,0) -> -10 | BQ95: =BA$72 -> Stockport | BR95: =$BQ$1 -> <=05/05/09 | BU95: =DSUM(Data,$M$5,$BQ94:$BR95) -> 140979
A96: 5 | B96: 2008-09-27T01:12:00 | C96: 00:00:00 | D96: 2008-09-27 | E96: MK Dons | F96: 1 | G96: 2 | H96: Peterborough | I96: 1 | J96: 0 | K96: 3 | L96: 2008-09-27T01:12:00 | M96: 10876 | N96: Other | P96: =BU$65 -> 119100 | T96: Colchester | U96: 23 | V96: 5178.26087 | Y96: 15 | BQ96: Home (team) | BR96: Date | BS96: x | BT96: Att
A97: 6 | B97: 2008-09-27T01:26:24 | C97: 00:00:00 | D97: 2008-09-27 | E97: Northampton | F97: 2 | G97: 2 | H97: Brighton | I97: 1 | J97: 1 | K97: 1 | L97: 2008-09-27T01:26:24 | M97: 5389 | N97: Northampton | O97: Brighton | P97: =BU$67 -> 104349 | T97: Crewe | U97: 23 | V97: 4536.913043 | Y97: 20 | BQ97: =BA$74 -> Swindon | BR97: =$BQ$1 -> <=05/05/09 | BU97: =DSUM(Data,$M$5,$BQ96:$BR97) -> 172473
A98: 7 | B98: 2008-09-27T01:40:48 | C98: 00:00:00 | D98: 2008-09-27 | E98: Oldham | F98: 1 | G98: 1 | H98: Huddersfield | I98: 1 | J98: 1 | K98: 1 | L98: 2008-09-27T01:40:48 | M98: 7418 | N98: Other | P98: =BU$69 -> 88202 | T98: Hartlepool | U98: 23 | V98: 3834.869565 | Y98: 23 | BQ98: Home (team) | BR98: Date | BS98: x | BT98: Att
A99: 8 | B99: 2008-09-27T01:55:12 | C99: 00:00:00 | D99: 2008-09-27 | E99: Scunthorpe | F99: 2 | G99: 0 | H99: Yeovil | I99: 1 | J99: 3 | K99: 0 | L99: 2008-09-27T01:55:12 | M99: 4829 | N99: Other | P99: =BU$71 -> 75205 | T99: Hereford | U99: 23 | V99: 3269.782609 | Y99: 24 | BQ99: =BA$76 -> Tranmere | BR99: =$BQ$1 -> <=05/05/09 | BU99: =DSUM(Data,$M$5,$BQ98:$BR99) -> 130704
A100: 9 | B100: 00:00:00 | C100: 2008-09-27T02:09:36 | D100: 2008-09-27 | E100: Walsall | F100: 2 | G100: 1 | H100: Carlisle | I100: 1 | J100: 3 | K100: 0 | L100: 2008-09-27T02:09:36 | M100: 4830 | N100: Other | P100: =BU$73 -> 306535 | T100: Huddersfield | U100: 23 | V100: 13327.6087 | Y100: 3 | BQ100: Home (team) | BR100: Date | BS100: x | BT100: Att
A101: 1 | B101: =IF(A101=1,D101+0.01,IF(A101=2,D101+0.02,IF(A101=3,D101+0.03,IF(A101=4,D101+0.04,IF(A101=5,D101+0.05,IF(A101=6,D101+0.06,IF(A101=7,D101+0.07,IF(A101=8,D101+0.08,0)))))))) -> 2008-09-28T00:14:24 | C101: =IF(A101=9,D101+0.09,IF(A101=10,D101+0.1,IF(A101=11,D101+0.11,IF(A101=12,D101+0.12,0)))) -> 00:00:00 | D101: 2008-09-28 | E101: Swindon | F101: 1 | G101: 2 | H101: Millwall | I101: 1 | J101: 0 | K101: 3 | L101: =B101+C101 -> 2008-09-28T00:14:24 | M101: 7589 | N101: Other | P101: =BU$75 -> 547696 | T101: Leeds United | U101: 23 | V101: 23812.86957 | Y101: 1 | BQ101: =BA$78 -> Walsall | BR101: =$BQ$1 -> <=05/05/09 | BU101: =DSUM(Data,$M$5,$BQ100:$BR101) -> 105154
A102: 1 | B102: 2008-09-30T00:14:24 | C102: 00:00:00 | D102: 2008-09-30 | E102: Colchester | F102: 0 | G102: 1 | H102: Leicester | I102: 1 | J102: 0 | K102: 3 | L102: 2008-09-30T00:14:24 | M102: 5133 | N102: Other | P102: =BU$77 -> 465825 | T102: Leicester | U102: 23 | V102: 20253.26087 | Y102: 2 | BQ102: Home (team) | BR102: Date | BS102: x | BT102: Att
A103: 1 | B103: 2008-10-03T00:14:24 | C103: 00:00:00 | D103: 2008-10-03 | E103: Hartlepool | F103: 3 | G103: 3 | H103: Swindon | I103: 1 | J103: 1 | K103: 1 | L103: 2008-10-03T00:14:24 | M103: 4018 | N103: Other | P103: =BU$79 -> 107912 | T103: Leyton Orient | U103: 23 | V103: 4691.826087 | Y103: 18 | BQ103: =BA$80 -> Yeovil | BR103: =$BQ$1 -> <=05/05/09 | BU103: =DSUM(Data,$M$5,$BQ102:$BR103) -> 101739
A104: 2 | B104: 2008-10-03T00:28:48 | C104: 00:00:00 | D104: 2008-10-03 | E104: Stockport | F104: 3 | G104: 1 | H104: Oldham | I104: 1 | J104: 3 | K104: 0 | L104: 2008-10-03T00:28:48 | M104: 8360 | N104: Other | P104: =BU$81 -> 205532 | T104: Millwall | U104: 23 | V104: 8936.173913 | Y104: 5
A105: 1 | B105: 2008-10-04T00:14:24 | C105: 00:00:00 | D105: 2008-10-04 | E105: Brighton | F105: 3 | G105: 3 | H105: Cheltenham | I105: 1 | J105: 1 | K105: 1 | L105: 2008-10-04T00:14:24 | M105: 5859 | N105: Other | P105: =BU$83 -> 242662 | T105: MK Dons | U105: 23 | V105: 10550.52174 | Y105: 4
A106: 2 | B106: 2008-10-04T00:28:48 | C106: 00:00:00 | D106: 2008-10-04 | E106: Carlisle | F106: 1 | G106: 2 | H106: Tranmere | I106: 1 | J106: 0 | K106: 3 | L106: 2008-10-04T00:28:48 | M106: 6093 | N106: Other | P106: =BU$85 -> 117120 | T106: Northampton | U106: 23 | V106: 5092.173913 | Y106: 16
A107: 3 | B107: 2008-10-04T00:43:12 | C107: 00:00:00 | D107: 2008-10-04 | E107: Colchester | F107: 0 | G107: 1 | H107: Bristol Rovers | I107: 1 | J107: 0 | K107: 3 | L107: 2008-10-04T00:43:12 | M107: 4811 | N107: Other | P107: =BU$87 -> 129231 | T107: Oldham | U107: 23 | V107: 5618.73913 | Y107: 14
A108: 4 | B108: 2008-10-04T00:57:36 | C108: 00:00:00 | D108: 2008-10-04 | E108: Crewe | F108: 1 | G108: 3 | H108: Northampton | I108: 1 | J108: 0 | K108: 3 | L108: 2008-10-04T00:57:36 | M108: 3977 | N108: Northampton | O108: Crewe | P108: =BU$89 -> 174773 | T108: Peterborough | U108: 23 | V108: 7598.826087 | Y108: 7
A109: 5 | B109: 2008-10-04T01:12:00 | C109: 00:00:00 | D109: 2008-10-04 | E109: Hereford | F109: 0 | G109: 0 | H109: Walsall | I109: 1 | J109: 1 | K109: 1 | L109: 2008-10-04T01:12:00 | M109: 3900 | N109: Other | P109: =BU$91 -> 115473 | T109: Scunthorpe | U109: 23 | V109: 5020.565217 | Y109: 17
A110: 6 | B110: 2008-10-04T01:26:24 | C110: 00:00:00 | D110: 2008-10-04 | E110: Huddersfield | F110: 2 | G110: 3 | H110: Leicester | I110: 1 | J110: 0 | K110: 3 | L110: 2008-10-04T01:26:24 | M110: 16212 | N110: Other | P110: =BU$93 -> 174788 | T110: Southend | U110: 23 | V110: 7599.478261 | Y110: 6
A111: 7 | B111: 2008-10-04T01:40:48 | C111: 00:00:00 | D111: 2008-10-04 | E111: Leyton Orient | F111: 2 | G111: 2 | H111: Scunthorpe | I111: 1 | J111: 1 | K111: 1 | L111: 2008-10-04T01:40:48 | M111: 4244 | N111: Other | P111: =BU$95 -> 140979 | T111: Stockport | U111: 23 | V111: 6129.521739 | Y111: 11
A112: 8 | B112: 2008-10-04T01:55:12 | C112: 00:00:00 | D112: 2008-10-04 | E112: Millwall | F112: 0 | G112: 4 | H112: MK Dons | I112: 1 | J112: 0 | K112: 3 | L112: 2008-10-04T01:55:12 | M112: 9871 | N112: Other | P112: =BU$97 -> 172473 | T112: Swindon | U112: 23 | V112: 7498.826087 | Y112: 8
A113: 9 | B113: 00:00:00 | C113: 2008-10-04T02:09:36 | D113: 2008-10-04 | E113: Peterborough | F113: 2 | G113: 0 | H113: Leeds United | I113: 1 | J113: 3 | K113: 0 | L113: 2008-10-04T02:09:36 | M113: 13191 | N113: Other | P113: =BU$99 -> 130704 | T113: Tranmere | U113: 23 | V113: 5682.782609 | Y113: 13
A114: 10 | B114: =IF(A114=1,D114+0.01,IF(A114=2,D114+0.02,IF(A114=3,D114+0.03,IF(A114=4,D114+0.04,IF(A114=5,D114+0.05,IF(A114=6,D114+0.06,IF(A114=7,D114+0.07,IF(A114=8,D114+0.08,0)))))))) -> 00:00:00 | C114: =IF(A114=9,D114+0.09,IF(A114=10,D114+0.1,IF(A114=11,D114+0.11,IF(A114=12,D114+0.12,0)))) -> 2008-10-04T02:24:00 | D114: 2008-10-04 | E114: Yeovil | F114: 1 | G114: 2 | H114: Southend | I114: 1 | J114: 0 | K114: 3 | L114: =B114+C114 -> 2008-10-04T02:24:00 | M114: 4008 | N114: Other | P114: =BU$101 -> 105154 | T114: Walsall | U114: 23 | V114: 4571.913043 | Y114: 19
A115: 1 | B115: 2008-10-10T00:14:24 | C115: 00:00:00 | D115: 2008-10-10 | E115: Northampton | F115: 1 | G115: 0 | H115: Hartlepool | I115: 1 | J115: 3 | K115: 0 | L115: 2008-10-10T00:14:24 | M115: 5277 | N115: Northampton | O115: Hartlepool | P115: =BU$103 -> 101739 | T115: Yeovil | U115: 23 | V115: 4423.434783 | Y115: 21
A116: 1 | B116: 2008-10-11T00:14:24 | C116: 00:00:00 | D116: 2008-10-11 | E116: Bristol Rovers | F116: 2 | G116: 1 | H116: Leyton Orient | I116: 1 | J116: 3 | K116: 0 | L116: 2008-10-11T00:14:24 | M116: 6425 | N116: Other
A117: 2 | B117: 2008-10-11T00:28:48 | C117: 00:00:00 | D117: 2008-10-11 | E117: Cheltenham | F117: 4 | G117: 3 | H117: Colchester | I117: 1 | J117: 3 | K117: 0 | L117: 2008-10-11T00:28:48 | M117: 3580 | N117: Other
A118: 3 | B118: 2008-10-11T00:43:12 | C118: 00:00:00 | D118: 2008-10-11 | E118: Leeds United | F118: 3 | G118: 1 | H118: Brighton | I118: 1 | J118: 3 | K118: 0 | L118: 2008-10-11T00:43:12 | M118: 22726 | N118: Other
A119: 4 | B119: 2008-10-11T00:57:36 | C119: 00:00:00 | D119: 2008-10-11 | E119: MK Dons | F119: 3 | G119: 1 | H119: Carlisle | I119: 1 | J119: 3 | K119: 0 | L119: 2008-10-11T00:57:36 | M119: 11194 | N119: Other
A120: 5 | B120: 2008-10-11T01:12:00 | C120: 00:00:00 | D120: 2008-10-11 | E120: Scunthorpe | F120: 3 | G120: 0 | H120: Crewe | I120: 1 | J120: 3 | K120: 0 | L120: 2008-10-11T01:12:00 | M120: 4790 | N120: Other
A121: 6 | B121: 2008-10-11T01:26:24 | C121: 00:00:00 | D121: 2008-10-11 | E121: Southend | F121: 1 | G121: 1 | H121: Stockport | I121: 1 | J121: 1 | K121: 1 | L121: 2008-10-11T01:26:24 | M121: 7125 | N121: Other
A122: 7 | B122: 2008-10-11T01:40:48 | C122: 00:00:00 | D122: 2008-10-11 | E122: Swindon | F122: 1 | G122: 3 | H122: Huddersfield | I122: 1 | J122: 0 | K122: 3 | L122: 2008-10-11T01:40:48 | M122: 7071 | N122: Other
A123: 8 | B123: 2008-10-11T01:55:12 | C123: 00:00:00 | D123: 2008-10-11 | E123: Tranmere | F123: 1 | G123: 3 | H123: Millwall | I123: 1 | J123: 0 | K123: 3 | L123: 2008-10-11T01:55:12 | M123: 5863 | N123: Other
A124: 9 | B124: =IF(A124=1,D124+0.01,IF(A124=2,D124+0.02,IF(A124=3,D124+0.03,IF(A124=4,D124+0.04,IF(A124=5,D124+0.05,IF(A124=6,D124+0.06,IF(A124=7,D124+0.07,IF(A124=8,D124+0.08,0)))))))) -> 00:00:00 | C124: =IF(A124=9,D124+0.09,IF(A124=10,D124+0.1,IF(A124=11,D124+0.11,IF(A124=12,D124+0.12,0)))) -> 2008-10-11T02:09:36 | D124: 2008-10-11 | E124: Walsall | F124: 1 | G124: 2 | H124: Peterborough | I124: 1 | J124: 0 | K124: 3 | L124: =B124+C124 -> 2008-10-11T02:09:36 | M124: 4792 | N124: Other
A125: 1 | B125: 2008-10-12T00:14:24 | C125: 00:00:00 | D125: 2008-10-12 | E125: Oldham | F125: 4 | G125: 0 | H125: Hereford | I125: 1 | J125: 3 | K125: 0 | L125: 2008-10-12T00:14:24 | M125: 5468 | N125: Other
A126: 1 | B126: 2008-10-18T00:14:24 | C126: 00:00:00 | D126: 2008-10-18 | E126: Brighton | F126: 0 | G126: 0 | H126: Hereford | I126: 1 | J126: 1 | K126: 1 | L126: 2008-10-18T00:14:24 | M126: 5608 | N126: Other
A127: 2 | B127: 2008-10-18T00:28:48 | C127: 00:00:00 | D127: 2008-10-18 | E127: Carlisle | F127: 3 | G127: 3 | H127: Peterborough | I127: 1 | J127: 1 | K127: 1 | L127: 2008-10-18T00:28:48 | M127: 6074 | N127: Other
A128: 3 | B128: 2008-10-18T00:43:12 | C128: 00:00:00 | D128: 2008-10-18 | E128: Cheltenham | F128: 1 | G128: 2 | H128: Scunthorpe | I128: 1 | J128: 0 | K128: 3 | L128: 2008-10-18T00:43:12 | M128: 3682 | N128: Other
A129: 4 | B129: 2008-10-18T00:57:36 | C129: 00:00:00 | D129: 2008-10-18 | E129: Crewe | F129: 2 | G129: 2 | H129: MK Dons | I129: 1 | J129: 1 | K129: 1 | L129: 2008-10-18T00:57:36 | M129: 4055 | N129: Other
A130: 5 | B130: 2008-10-18T01:12:00 | C130: 00:00:00 | D130: 2008-10-18 | E130: Huddersfield | F130: 1 | G130: 1 | H130: Bristol Rovers | I130: 1 | J130: 1 | K130: 1 | L130: 2008-10-18T01:12:00 | M130: 13779 | N130: Other
A131: 6 | B131: 2008-10-18T01:26:24 | C131: 00:00:00 | D131: 2008-10-18 | E131: Leyton Orient | F131: 0 | G131: 1 | H131: Tranmere | I131: 1 | J131: 0 | K131: 3 | L131: 2008-10-18T01:26:24 | M131: 5568 | N131: Other
A132: 7 | B132: 2008-10-18T01:40:48 | C132: 00:00:00 | D132: 2008-10-18 | E132: Millwall | F132: 3 | G132: 1 | H132: Leeds United | I132: 1 | J132: =IF(F132>G132,3,IF(F132=G132,1,0)) -> 3 | K132: =IF(G132>F132,3,IF(G132=F132,1,0)) -> 0 | L132: 2008-10-18T01:40:48 | M132: 13041 | N132: Other
A133: 8 | B133: 2008-10-18T01:55:12 | C133: 00:00:00 | D133: 2008-10-18 | E133: Northampton | F133: 3 | G133: 0 | H133: Yeovil | I133: 1 | J133: 3 | K133: 0 | L133: 2008-10-18T01:55:12 | M133: 5217 | N133: Northampton | O133: Yeovil
A134: 9 | B134: 00:00:00 | C134: 2008-10-18T02:09:36 | D134: 2008-10-18 | E134: Oldham | F134: 1 | G134: 1 | H134: Leicester | I134: 1 | J134: 1 | K134: 1 | L134: 2008-10-18T02:09:36 | M134: 8901 | N134: Other
A135: =IF(D135=D134,A134+1,1) -> 10 | B135: 00:00:00 | C135: 2008-10-18T02:24:00 | D135: 2008-10-18 | E135: Southend | F135: 2 | G135: 1 | H135: Swindon | I135: 1 | J135: 3 | K135: 0 | L135: 2008-10-18T02:24:00 | M135: 7965 | N135: =IF(E135=$N$1,$N$1,IF(H135=$N$1,$N$1,"Other")) -> Other | O135: =IF(N135=$N$1,IF(E135=$N$1,H135,E135),"") -> 
A136: 11 | B136: 00:00:00 | C136: 2008-10-18T02:38:24 | D136: 2008-10-18 | E136: Stockport | F136: 1 | G136: 2 | H136: Colchester | I136: 1 | J136: 0 | K136: 3 | L136: 2008-10-18T02:38:24 | M136: 6025 | N136: Other
A137: 12 | B137: =IF(A137=1,D137+0.01,IF(A137=2,D137+0.02,IF(A137=3,D137+0.03,IF(A137=4,D137+0.04,IF(A137=5,D137+0.05,IF(A137=6,D137+0.06,IF(A137=7,D137+0.07,IF(A137=8,D137+0.08,0)))))))) -> 00:00:00 | C137: =IF(A137=9,D137+0.09,IF(A137=10,D137+0.1,IF(A137=11,D137+0.11,IF(A137=12,D137+0.12,0)))) -> 2008-10-18T02:52:48 | D137: 2008-10-18 | E137: Walsall | F137: 2 | G137: 3 | H137: Hartlepool | I137: 1 | J137: 0 | K137: 3 | L137: =B137+C137 -> 2008-10-18T02:52:48 | M137: 4142 | N137: Other
A138: 1 | B138: 2008-10-21T00:14:24 | C138: 00:00:00 | D138: 2008-10-21 | E138: Bristol Rovers | F138: 2 | G138: 0 | H138: Oldham | I138: 1 | J138: 3 | K138: 0 | L138: 2008-10-21T00:14:24 | M138: 6379 | N138: Other
A139: 2 | B139: 2008-10-21T00:28:48 | C139: 00:00:00 | D139: 2008-10-21 | E139: Colchester | F139: 1 | G139: 2 | H139: Millwall | I139: 1 | J139: 0 | K139: 3 | L139: 2008-10-21T00:28:48 | M139: 5506 | N139: Other
A140: 3 | B140: 2008-10-21T00:43:12 | C140: 00:00:00 | D140: 2008-10-21 | E140: Hartlepool | F140: 5 | G140: 3 | H140: Huddersfield | I140: 1 | J140: 3 | K140: 0 | L140: 2008-10-21T00:43:12 | M140: 3771 | N140: Other
A141: 4 | B141: 2008-10-21T00:57:36 | C141: 00:00:00 | D141: 2008-10-21 | E141: Hereford | F141: 1 | G141: 0 | H141: Carlisle | I141: 1 | J141: 3 | K141: 0 | L141: 2008-10-21T00:57:36 | M141: 2300 | N141: Other
A142: 5 | B142: 2008-10-21T01:12:00 | C142: 00:00:00 | D142: 2008-10-21 | E142: Leeds United | F142: 2 | G142: 1 | H142: Leyton Orient | I142: 1 | J142: 3 | K142: 0 | L142: 2008-10-21T01:12:00 | M142: 18990 | N142: Other
A143: 6 | B143: 2008-10-21T01:26:24 | C143: 00:00:00 | D143: 2008-10-21 | E143: Leicester | F143: 2 | G143: 2 | H143: Walsall | I143: 1 | J143: 1 | K143: 1 | L143: 2008-10-21T01:26:24 | M143: 17178 | N143: Other
A144: 7 | B144: 2008-10-21T01:40:48 | C144: 00:00:00 | D144: 2008-10-21 | E144: MK Dons | F144: 1 | G144: 2 | H144: Stockport | I144: 1 | J144: 0 | K144: 3 | L144: 2008-10-21T01:40:48 | M144: 6931 | N144: Other
A145: 8 | B145: 2008-10-21T01:55:12 | C145: 00:00:00 | D145: 2008-10-21 | E145: Peterborough | F145: 0 | G145: 0 | H145: Brighton | I145: 1 | J145: 1 | K145: 1 | L145: 2008-10-21T01:55:12 | M145: 5772 | N145: Other
A146: 9 | B146: 00:00:00 | C146: 2008-10-21T02:09:36 | D146: 2008-10-21 | E146: Scunthorpe | F146: 1 | G146: 1 | H146: Southend | I146: 1 | J146: 1 | K146: 1 | L146: 2008-10-21T02:09:36 | M146: 4324 | N146: Other
A147: 10 | B147: 00:00:00 | C147: 2008-10-21T02:24:00 | D147: 2008-10-21 | E147: Swindon | F147: 2 | G147: 1 | H147: Northampton | I147: 1 | J147: 3 | K147: 0 | L147: 2008-10-21T02:24:00 | M147: 6653 | N147: Northampton | O147: Swindon
A148: 11 | B148: 00:00:00 | C148: 2008-10-21T02:38:24 | D148: 2008-10-21 | E148: Tranmere | F148: 2 | G148: 0 | H148: Cheltenham | I148: 1 | J148: 3 | K148: 0 | L148: 2008-10-21T02:38:24 | M148: 4535 | N148: Other
A149: 12 | B149: =IF(A149=1,D149+0.01,IF(A149=2,D149+0.02,IF(A149=3,D149+0.03,IF(A149=4,D149+0.04,IF(A149=5,D149+0.05,IF(A149=6,D149+0.06,IF(A149=7,D149+0.07,IF(A149=8,D149+0.08,0)))))))) -> 00:00:00 | C149: =IF(A149=9,D149+0.09,IF(A149=10,D149+0.1,IF(A149=11,D149+0.11,IF(A149=12,D149+0.12,0)))) -> 2008-10-21T02:52:48 | D149: 2008-10-21 | E149: Yeovil | F149: 3 | G149: 2 | H149: Crewe | I149: 1 | J149: 3 | K149: 0 | L149: 2008-10-21T02:52:48 | M149: 3536 | N149: Other
A150: 1 | B150: =IF(A150=1,D150+0.01,IF(A150=2,D150+0.02,IF(A150=3,D150+0.03,IF(A150=4,D150+0.04,IF(A150=5,D150+0.05,IF(A150=6,D150+0.06,IF(A150=7,D150+0.07,IF(A150=8,D150+0.08,0)))))))) -> 2008-10-24T00:14:24 | C150: =IF(A150=9,D150+0.09,IF(A150=10,D150+0.1,IF(A150=11,D150+0.11,IF(A150=12,D150+0.12,0)))) -> 00:00:00 | D150: 2008-10-24 | E150: Tranmere | F150: 2 | G150: 0 | H150: Crewe | I150: 1 | J150: 3 | K150: 0 | L150: =B150+C150 -> 2008-10-24T00:14:24 | M150: 2626 | N150: Other
A151: 1 | B151: 2008-10-25T00:14:24 | C151: 00:00:00 | D151: 2008-10-25 | E151: Bristol Rovers | F151: 4 | G151: 2 | H151: Southend | I151: 1 | J151: 3 | K151: 0 | L151: 2008-10-25T00:14:24 | M151: 7055 | N151: Other
A152: 2 | B152: 2008-10-25T00:28:48 | C152: 00:00:00 | D152: 2008-10-25 | E152: Colchester | F152: 5 | G152: 0 | H152: Carlisle | I152: 1 | J152: 3 | K152: 0 | L152: 2008-10-25T00:28:48 | M152: 5152 | N152: Other
A153: 3 | B153: 2008-10-25T00:43:12 | C153: 00:00:00 | D153: 2008-10-25 | E153: Hartlepool | F153: 1 | G153: 0 | H153: Brighton | I153: 1 | J153: 3 | K153: 0 | L153: 2008-10-25T00:43:12 | M153: 3962 | N153: Other
A154: 4 | B154: 2008-10-25T00:57:36 | C154: 00:00:00 | D154: 2008-10-25 | E154: Hereford | F154: 0 | G154: 1 | H154: Stockport | I154: 1 | J154: 0 | K154: 3 | L154: 2008-10-25T00:57:36 | M154: 3210 | N154: Other
A155: 5 | B155: 2008-10-25T01:12:00 | C155: 00:00:00 | D155: 2008-10-25 | E155: Leeds United | F155: 3 | G155: 0 | H155: Walsall | I155: 1 | J155: 3 | K155: 0 | L155: 2008-10-25T01:12:00 | M155: 26422 | N155: Other
A156: 6 | B156: 2008-10-25T01:26:24 | C156: 00:00:00 | D156: 2008-10-25 | E156: Leicester | F156: 0 | G156: 0 | H156: Northampton | I156: 1 | J156: 1 | K156: 1 | L156: 2008-10-25T01:26:24 | M156: 22795 | N156: Northampton | O156: Leicester
A157: 7 | B157: 2008-10-25T01:40:48 | C157: 00:00:00 | D157: 2008-10-25 | E157: MK Dons | F157: 3 | G157: 1 | H157: Cheltenham | I157: 1 | J157: 3 | K157: 0 | L157: 2008-10-25T01:40:48 | M157: 8190 | N157: Other
A158: 8 | B158: 2008-10-25T01:55:12 | C158: 00:00:00 | D158: 2008-10-25 | E158: Peterborough | F158: 4 | G158: 0 | H158: Huddersfield | I158: 1 | J158: 3 | K158: 0 | L158: 2008-10-25T01:55:12 | M158: 7064 | N158: Other
A159: 9 | B159: 00:00:00 | C159: 2008-10-25T02:09:36 | D159: 2008-10-25 | E159: Scunthorpe | F159: 3 | G159: 2 | H159: Millwall | I159: 1 | J159: 3 | K159: 0 | L159: 2008-10-25T02:09:36 | M159: 5670 | N159: Other
A160: 10 | B160: 00:00:00 | C160: 2008-10-25T02:24:00 | D160: 2008-10-25 | E160: Swindon | F160: 2 | G160: 0 | H160: Oldham | I160: 1 | J160: 3 | K160: 0 | L160: 2008-10-25T02:24:00 | M160: 6756 | N160: Other
A161: 11 | B161: =IF(A161=1,D161+0.01,IF(A161=2,D161+0.02,IF(A161=3,D161+0.03,IF(A161=4,D161+0.04,IF(A161=5,D161+0.05,IF(A161=6,D161+0.06,IF(A161=7,D161+0.07,IF(A161=8,D161+0.08,0)))))))) -> 00:00:00 | C161: =IF(A161=9,D161+0.09,IF(A161=10,D161+0.1,IF(A161=11,D161+0.11,IF(A161=12,D161+0.12,0)))) -> 2008-10-25T02:38:24 | D161: 2008-10-25 | E161: Yeovil | F161: 0 | G161: 0 | H161: Leyton Orient | I161: 1 | J161: 1 | K161: 1 | L161: =B161+C161 -> 2008-10-25T02:38:24 | M161: 4320 | N161: Other
A162: 1 | B162: 2008-10-28T00:14:24 | C162: 00:00:00 | D162: 2008-10-28 | E162: Brighton | F162: 3 | G162: 2 | H162: Leicester | I162: 1 | J162: 3 | K162: 0 | L162: 2008-10-28T00:14:24 | M162: 6282 | N162: Other
A163: 2 | B163: 2008-10-28T00:28:48 | C163: 00:00:00 | D163: 2008-10-28 | E163: Carlisle | F163: 0 | G163: 1 | H163: Hartlepool | I163: 1 | J163: 0 | K163: 3 | L163: 2008-10-28T00:28:48 | M163: 5637 | N163: Other
A164: 3 | B164: 2008-10-28T00:43:12 | C164: 00:00:00 | D164: 2008-10-28 | E164: Crewe | F164: 1 | G164: 1 | H164: Peterborough | I164: 1 | J164: 1 | K164: 1 | L164: 2008-10-28T00:43:12 | M164: 3699 | N164: Other
A165: 4 | B165: 2008-10-28T00:57:36 | C165: 00:00:00 | D165: 2008-10-28 | E165: Huddersfield | F165: 0 | G165: 0 | H165: Yeovil | I165: 1 | J165: 1 | K165: 1 | L165: 2008-10-28T00:57:36 | M165: 10719 | N165: Other
A166: 5 | B166: 2008-10-28T01:12:00 | C166: 00:00:00 | D166: 2008-10-28 | E166: Leyton Orient | F166: 1 | G166: 2 | H166: MK Dons | I166: 1 | J166: 0 | K166: 3 | L166: 2008-10-28T01:12:00 | M166: 3869 | N166: Other
A167: 6 | B167: 2008-10-28T01:26:24 | C167: 00:00:00 | D167: 2008-10-28 | E167: Millwall | F167: 1 | G167: 0 | H167: Hereford | I167: 1 | J167: 3 | K167: 0 | L167: 2008-10-28T01:26:24 | M167: 9071 | N167: Other
A168: 7 | B168: 2008-10-28T01:40:48 | C168: 00:00:00 | D168: 2008-10-28 | E168: Oldham | F168: 3 | G168: 0 | H168: Scunthorpe | I168: 1 | J168: 3 | K168: 0 | L168: 2008-10-28T01:40:48 | M168: 6057 | N168: Other
A169: 8 | B169: 2008-10-28T01:55:12 | C169: 00:00:00 | D169: 2008-10-28 | E169: Southend | F169: 1 | G169: 0 | H169: Leeds United | I169: 1 | J169: 3 | K169: 0 | L169: 2008-10-28T01:55:12 | M169: 10132 | N169: Other
A170: 9 | B170: =IF(A170=1,D170+0.01,IF(A170=2,D170+0.02,IF(A170=3,D170+0.03,IF(A170=4,D170+0.04,IF(A170=5,D170+0.05,IF(A170=6,D170+0.06,IF(A170=7,D170+0.07,IF(A170=8,D170+0.08,0)))))))) -> 00:00:00 | C170: =IF(A170=9,D170+0.09,IF(A170=10,D170+0.1,IF(A170=11,D170+0.11,IF(A170=12,D170+0.12,0)))) -> 2008-10-28T02:09:36 | D170: 2008-10-28 | E170: Stockport | F170: 0 | G170: 0 | H170: Tranmere | I170: 1 | J170: 1 | K170: 1 | L170: =B170+C170 -> 2008-10-28T02:09:36 | M170: 6121 | N170: Other | T170: Updating Table
A171: 1 | B171: 2008-11-01T00:14:24 | C171: 00:00:00 | D171: 2008-11-01 | E171: Brighton | F171: 4 | G171: 1 | H171: Millwall | I171: 1 | J171: 3 | K171: 0 | L171: 2008-11-01T00:14:24 | M171: 5973 | N171: Other
A172: 2 | B172: 2008-11-01T00:28:48 | C172: 00:00:00 | D172: 2008-11-01 | E172: Cheltenham | F172: 0 | G172: 1 | H172: Leeds United | I172: 1 | J172: 0 | K172: 3 | L172: 2008-11-01T00:28:48 | M172: 5726 | N172: Other
A173: 3 | B173: 2008-11-01T00:43:12 | C173: 00:00:00 | D173: 2008-11-01 | E173: Huddersfield | F173: 3 | G173: 2 | H173: Crewe | I173: 1 | J173: 3 | K173: 0 | L173: 2008-11-01T00:43:12 | M173: 11679 | N173: Other
A174: 4 | B174: 2008-11-01T00:57:36 | C174: 00:00:00 | D174: 2008-11-01 | E174: Leicester | F174: 2 | G174: 1 | H174: Bristol Rovers | I174: 1 | J174: 3 | K174: 0 | L174: 2008-11-01T00:57:36 | M174: 18941 | N174: Other
A175: 5 | B175: 2008-11-01T01:12:00 | C175: 00:00:00 | D175: 2008-11-01 | E175: Leyton Orient | F175: 1 | G175: 0 | H175: Hartlepool | I175: 1 | J175: 3 | K175: 0 | L175: 2008-11-01T01:12:00 | M175: 3638 | N175: Other
A176: 6 | B176: 2008-11-01T01:26:24 | C176: 00:00:00 | D176: 2008-11-01 | E176: MK Dons | F176: 1 | G176: 0 | H176: Tranmere | I176: 1 | J176: 3 | K176: 0 | L176: 2008-11-01T01:26:24 | M176: 8185 | N176: Other
A177: 7 | B177: 2008-11-01T01:40:48 | C177: 00:00:00 | D177: 2008-11-01 | E177: Oldham | F177: 0 | G177: 2 | H177: Yeovil | I177: 1 | J177: 0 | K177: 3 | L177: 2008-11-01T01:40:48 | M177: 5318 | N177: Other
A178: 8 | B178: 2008-11-01T01:55:12 | C178: 00:00:00 | D178: 2008-11-01 | E178: Peterborough | F178: 2 | G178: 0 | H178: Hereford | I178: 1 | J178: 3 | K178: 0 | L178: 2008-11-01T01:55:12 | M178: 6087 | N178: Other
A179: 9 | B179: 00:00:00 | C179: 2008-11-01T02:09:36 | D179: 2008-11-01 | E179: Scunthorpe | F179: 3 | G179: 3 | H179: Swindon | I179: 1 | J179: 1 | K179: 1 | L179: 2008-11-01T02:09:36 | M179: 4744 | N179: Other
A180: 10 | B180: 00:00:00 | C180: 2008-11-01T02:24:00 | D180: 2008-11-01 | E180: Southend | F180: 3 | G180: 3 | H180: Colchester | I180: 1 | J180: 1 | K180: 1 | L180: 2008-11-01T02:24:00 | M180: 8920 | N180: Other
A181: 11 | B181: 00:00:00 | C181: 2008-11-01T02:38:24 | D181: 2008-11-01 | E181: Stockport | F181: 3 | G181: 0 | H181: Carlisle | I181: 1 | J181: 3 | K181: 0 | L181: 2008-11-01T02:38:24 | M181: 6301 | N181: Other
A182: 12 | B182: =IF(A182=1,D182+0.01,IF(A182=2,D182+0.02,IF(A182=3,D182+0.03,IF(A182=4,D182+0.04,IF(A182=5,D182+0.05,IF(A182=6,D182+0.06,IF(A182=7,D182+0.07,IF(A182=8,D182+0.08,0)))))))) -> 00:00:00 | C182: =IF(A182=9,D182+0.09,IF(A182=10,D182+0.1,IF(A182=11,D182+0.11,IF(A182=12,D182+0.12,0)))) -> 2008-11-01T02:52:48 | D182: 2008-11-01 | E182: Walsall | F182: 3 | G182: 1 | H182: Northampton | I182: 1 | J182: 3 | K182: 0 | L182: =B182+C182 -> 2008-11-01T02:52:48 | M182: 4377 | N182: Northampton | O182: Walsall
A183: 1 | B183: 2008-11-11T00:14:24 | C183: 00:00:00 | D183: 2008-11-11 | E183: Leicester | F183: 1 | G183: 0 | H183: Yeovil | I183: 1 | J183: 3 | K183: 0 | L183: 2008-11-11T00:14:24 | M183: 16528 | N183: Other
A184: 1 | B184: 2008-11-14T00:14:24 | C184: 00:00:00 | D184: 2008-11-14 | E184: Bristol Rovers | F184: 1 | G184: 2 | H184: Scunthorpe | I184: 1 | J184: 0 | K184: 3 | L184: 2008-11-14T00:14:24 | M184: 7173 | N184: Other
A185: 1 | B185: 2008-11-15T00:14:24 | C185: 00:00:00 | D185: 2008-11-15 | E185: Carlisle | F185: 3 | G185: 1 | H185: Brighton | I185: 1 | J185: 3 | K185: 0 | L185: 2008-11-15T00:14:24 | M185: 5333 | N185: Other
A186: 2 | B186: 2008-11-15T00:28:48 | C186: 00:00:00 | D186: 2008-11-15 | E186: Colchester | F186: 0 | G186: 2 | H186: Walsall | I186: 1 | J186: 0 | K186: 3 | L186: 2008-11-15T00:28:48 | M186: 4071 | N186: Other
A187: 3 | B187: 2008-11-15T00:43:12 | C187: 00:00:00 | D187: 2008-11-15 | E187: Crewe | F187: 0 | G187: 2 | H187: Leyton Orient | I187: 1 | J187: 0 | K187: 3 | L187: 2008-11-15T00:43:12 | M187: 3872 | N187: Other
A188: 4 | B188: 2008-11-15T00:57:36 | C188: 00:00:00 | D188: 2008-11-15 | E188: Hartlepool | F188: 1 | G188: 3 | H188: MK Dons | I188: 1 | J188: 0 | K188: 3 | L188: 2008-11-15T00:57:36 | M188: 4021 | N188: Other
A189: 5 | B189: 2008-11-15T01:12:00 | C189: 00:00:00 | D189: 2008-11-15 | E189: Hereford | F189: 3 | G189: 0 | H189: Cheltenham | I189: 1 | J189: 3 | K189: 0 | L189: 2008-11-15T01:12:00 | M189: 3761 | N189: Other
A190: 6 | B190: 2008-11-15T01:26:24 | C190: 00:00:00 | D190: 2008-11-15 | E190: Leeds United | F190: 1 | G190: 2 | H190: Huddersfield | I190: 1 | J190: 0 | K190: 3 | L190: 2008-11-15T01:26:24 | M190: 32028 | N190: Other
A191: 7 | B191: 2008-11-15T01:40:48 | C191: 00:00:00 | D191: 2008-11-15 | E191: Millwall | F191: 1 | G191: 0 | H191: Stockport | I191: 1 | J191: 3 | K191: 0 | L191: 2008-11-15T01:40:48 | M191: 9030 | N191: Other
A192: 8 | B192: 2008-11-15T01:55:12 | C192: 00:00:00 | D192: 2008-11-15 | E192: Northampton | F192: 0 | G192: 1 | H192: Oldham | I192: 1 | J192: 0 | K192: 3 | L192: 2008-11-15T01:55:12 | M192: 2585 | N192: Northampton | O192: Oldham
A193: 9 | B193: 00:00:00 | C193: 2008-11-15T02:09:36 | D193: 2008-11-15 | E193: Swindon | F193: 2 | G193: 2 | H193: Leicester | I193: 1 | J193: 1 | K193: 1 | L193: 2008-11-15T02:09:36 | M193: 9499 | N193: Other
A194: 10 | B194: 00:00:00 | C194: 2008-11-15T02:24:00 | D194: 2008-11-15 | E194: Tranmere | F194: 2 | G194: 2 | H194: Southend | I194: 1 | J194: 1 | K194: 1 | L194: 2008-11-15T02:24:00 | M194: 5019 | N194: Other
A195: 11 | B195: =IF(A195=1,D195+0.01,IF(A195=2,D195+0.02,IF(A195=3,D195+0.03,IF(A195=4,D195+0.04,IF(A195=5,D195+0.05,IF(A195=6,D195+0.06,IF(A195=7,D195+0.07,IF(A195=8,D195+0.08,0)))))))) -> 00:00:00 | C195: =IF(A195=9,D195+0.09,IF(A195=10,D195+0.1,IF(A195=11,D195+0.11,IF(A195=12,D195+0.12,0)))) -> 2008-11-15T02:38:24 | D195: 2008-11-15 | E195: Yeovil | F195: 0 | G195: 1 | H195: Peterborough | I195: 1 | J195: 0 | K195: 3 | L195: 2008-11-15T02:38:24 | M195: 4001 | N195: Other
A196: 1 | B196: =IF(A196=1,D196+0.01,IF(A196=2,D196+0.02,IF(A196=3,D196+0.03,IF(A196=4,D196+0.04,IF(A196=5,D196+0.05,IF(A196=6,D196+0.06,IF(A196=7,D196+0.07,IF(A196=8,D196+0.08,0)))))))) -> 2008-11-22T00:14:24 | C196: =IF(A196=9,D196+0.09,IF(A196=10,D196+0.1,IF(A196=11,D196+0.11,IF(A196=12,D196+0.12,0)))) -> 00:00:00 | D196: 2008-11-22 | E196: Brighton | F196: 0 | G196: 1 | H196: Huddersfield | I196: 1 | J196: =IF(F196>G196,3,IF(F196=G196,1,0)) -> 0 | K196: =IF(G196>F196,3,IF(G196=F196,1,0)) -> 3 | L196: =B196+C196 -> 2008-11-22T00:14:24 | M196: 6461 | N196: Other
A197: 2 | B197: 2008-11-22T00:28:48 | C197: 00:00:00 | D197: 2008-11-22 | E197: Bristol Rovers | F197: 2 | G197: 2 | H197: Swindon | I197: 1 | J197: 1 | K197: 1 | L197: 2008-11-22T00:28:48 | M197: 8016 | N197: Other
A198: 3 | B198: 2008-11-22T00:43:12 | C198: 00:00:00 | D198: 2008-11-22 | E198: Carlisle | F198: 1 | G198: 0 | H198: Cheltenham | I198: 1 | J198: 3 | K198: 0 | L198: 2008-11-22T00:43:12 | M198: 5374 | N198: Other
A199: =IF(D199=D198,A198+1,1) -> 4 | B199: 2008-11-22T00:57:36 | C199: 00:00:00 | D199: 2008-11-22 | E199: Crewe | F199: 0 | G199: 3 | H199: Stockport | I199: 1 | J199: 0 | K199: 3 | L199: 2008-11-22T00:57:36 | M199: 5337 | N199: =IF(E199=$N$1,$N$1,IF(H199=$N$1,$N$1,"Other")) -> Other | O199: =IF(N199=$N$1,IF(E199=$N$1,H199,E199),"") -> 
A200: 5 | B200: 2008-11-22T01:12:00 | C200: 00:00:00 | D200: 2008-11-22 | E200: Hereford | F200: 0 | G200: 2 | H200: Northampton | I200: 1 | J200: 0 | K200: 3 | L200: 2008-11-22T01:12:00 | M200: 3061 | N200: Northampton | O200: Hereford
... 373 more rows
